Service Area Categorisation,Service Division Categorisation,Responsible Unit,Expenses Types,Detailed Expenses Type,Expense Code,Narrative,Payment Date,Transaction Number,Order ID,Amount,Capital/Revenue,Supplier Name,Supplier ID,Customer ID
Highways,Highways,Operations,Current Assets,Inventories,Stock Received Suspense,,26/09/2014,10395314,809008,"1,656.00",R,Diatech Scotland,,
Control Division,Control Dept,Control,Current Liabilities,Short Term Creditors,Resource Link Payments,,05/09/2014,10392797,0,30.00,R,Monmouthshire C.C.,,
Control Division,Control Dept,Control,Current Liabilities,Short Term Creditors,Resource Link Payments,,05/09/2014,10392790,0,85.84,R,Torfaen CBC,,
Control Division,Control Dept,Control,Current Liabilities,Short Term Creditors,Resource Link Payments,,05/09/2014,10392781,0,491.00,R,GMB National Administration Unit,,
Control Division,Control Dept,Control,Current Liabilities,Short Term Creditors,Resource Link Payments,,05/09/2014,10392794,0,110.00,R,Caps,,
Schools Total,School Group 7 � Pupil Capacity 501-1800,MCC Schools,Employees,Direct Employee Expenses,Agency Staff,,02/09/2014,10392327,80029767,375.00,R,ITN Mark Education,,
Schools Total,School Group 1 � Pupil Capacity 1-143,MCC Schools,Employees,Direct Employee Expenses,Agency Staff,,19/09/2014,10393472,0,300.30,R,Teaching Personnel,,
Schools Total,School Group 1 � Pupil Capacity 1-143,MCC Schools,Employees,Direct Employee Expenses,Agency Staff,,05/09/2014,10385040,0,647.25,R,Teaching Personnel,,
Schools Total,School Group 2 � Pupil Capacity 144-314,MCC Schools,Employees,Direct Employee Expenses,Agency Staff,,30/09/2014,10397550,0,630.00,R,TeacherActive,,
Schools Total,SCHGRP3 � School Group 3 � Pupil Capacity 315-500,MCC Schools,Employees,Direct Employee Expenses,Agency Staff,,26/09/2014,10395426,0,563.68,R,Teaching Personnel,,
Schools Total,SCHGRP3 � School Group 3 � Pupil Capacity 315-500,MCC Schools,Employees,Direct Employee Expenses,Agency Staff,,26/09/2014,10395429,0,605.28,R,Travail Employment Group,,
Schools Total,School Group 2 � Pupil Capacity 144-314,MCC Schools,Employees,Direct Employee Expenses,Agency Staff,,26/09/2014,10395564,0,880.00,R,Teaching 4 Wales Ltd,,
Schools Total,School Group 2 � Pupil Capacity 144-314,MCC Schools,Employees,Direct Employee Expenses,Agency Staff,,05/09/2014,10393008,0,177.00,R,Teaching 4 Wales Ltd,,
Schools Total,School Group 2 � Pupil Capacity 144-314,MCC Schools,Employees,Direct Employee Expenses,Agency Staff,,02/09/2014,10385098,0,354.00,R,Teaching 4 Wales Ltd,,
Schools Total,School Group 1 � Pupil Capacity 1-143,MCC Schools,Employees,Direct Employee Expenses,Agency Staff,,02/09/2014,10385541,0,88.00,R,New Directions Recruitment Ltd,,
Schools Total,School Group 1 � Pupil Capacity 1-143,MCC Schools,Employees,Direct Employee Expenses,Agency Staff,,30/09/2014,10397524,0,291.00,R,New Directions Recruitment Ltd,,
Schools Total,School Group 1 � Pupil Capacity 1-143,MCC Schools,Employees,Direct Employee Expenses,Agency Staff,,30/09/2014,10397527,0,95.00,R,Bay Resourcing,,
Schools Total,School Group 2 � Pupil Capacity 144-314,MCC Schools,Employees,Direct Employee Expenses,Agency Staff,,26/09/2014,10395558,0,356.10,R,New Directions Recruitment Ltd,,
Schools Effectiveness Grant & Welsh In Education Grant,Schools Better Schools Fund,MCC Schools,Employees,Direct Employee Expenses,Agency Staff,,02/09/2014,10385546,0,145.00,R,New Directions Recruitment Ltd,,
Schools Effectiveness Grant & Welsh In Education Grant,Schools Better Schools Fund,MCC Schools,Employees,Direct Employee Expenses,Agency Staff,,02/09/2014,10385555,0,142.42,R,New Directions Recruitment Ltd,,
Schools Effectiveness Grant & Welsh In Education Grant,Schools Better Schools Fund,MCC Schools,Employees,Direct Employee Expenses,Agency Staff,,30/09/2014,10396838,80030353,122.00,R,Accent on Education,,
Highways,Highways,Operations,Employees,Direct Employee Expenses,Agency Staff,,02/09/2014,10390174,0,150.20,R,Randstad Employment Bureau Ltd,,
Waste & Street Scene,Waste and Street Services,Operations,Employees,Direct Employee Expenses,Agency Staff,,02/09/2014,10390174,0,375.72,R,Randstad Employment Bureau Ltd,,
Waste & Street Scene,Waste and Street Services,Operations,Employees,Direct Employee Expenses,Agency Staff,,02/09/2014,10390174,0,303.00,R,Randstad Employment Bureau Ltd,,
Waste & Street Scene,Waste and Street Services,Operations,Employees,Direct Employee Expenses,Agency Staff,,02/09/2014,10390174,0,327.33,R,Randstad Employment Bureau Ltd,,
Waste & Street Scene,Waste and Street Services,Operations,Employees,Direct Employee Expenses,Agency Staff,,02/09/2014,10390174,0,405.80,R,Randstad Employment Bureau Ltd,,
Waste & Street Scene,Waste and Street Services,Operations,Employees,Direct Employee Expenses,Agency Staff,,16/09/2014,10393095,0,73.73,R,Randstad Employment Bureau Ltd,,
Highways,Highways,Operations,Employees,Direct Employee Expenses,Agency Staff,,02/09/2014,10390174,0,373.07,R,Randstad Employment Bureau Ltd,,
Highways,Highways,Operations,Employees,Direct Employee Expenses,Agency Staff,,16/09/2014,10393095,0,382.76,R,Randstad Employment Bureau Ltd,,
Children Services,Children Services Teams,Social Care and Health,Employees,Direct Employee Expenses,Agency Staff,,02/09/2014,10390174,0,25.65,R,Randstad Employment Bureau Ltd,,
Children Services,Children Services Teams,Social Care and Health,Employees,Direct Employee Expenses,Agency Staff,,02/09/2014,10390174,0,97.65,R,Randstad Employment Bureau Ltd,,
Children Services,Children Services Teams,Social Care and Health,Employees,Direct Employee Expenses,Agency Staff,,16/09/2014,10393095,0,925.20,R,Randstad Employment Bureau Ltd,,
Children Services,Children Services Teams,Social Care and Health,Employees,Direct Employee Expenses,Agency Staff,,16/09/2014,10393095,0,"1,196.95",R,Randstad Employment Bureau Ltd,,
Children Services,Children Services Teams,Social Care and Health,Employees,Direct Employee Expenses,Agency Staff,,16/09/2014,10393095,0,72.90,R,Randstad Employment Bureau Ltd,,
Children Services,Children Services Teams,Social Care and Health,Employees,Direct Employee Expenses,Agency Staff,,16/09/2014,10393095,0,70.20,R,Randstad Employment Bureau Ltd,,
Schools Total,School Group 2 � Pupil Capacity 144-314,MCC Schools,Employees,Indirect Employee Expenses,Replacement,,30/09/2014,10397151,0,260.00,R,New Directions Recruitment Ltd,,
Schools Total,School Group 2 � Pupil Capacity 144-314,MCC Schools,Employees,Indirect Employee Expenses,Replacement,,30/09/2014,10397153,0,151.62,R,New Directions Recruitment Ltd,,
Schools Total,School Group 2 � Pupil Capacity 144-314,MCC Schools,Employees,Indirect Employee Expenses,Replacement,,05/09/2014,10391163,0,172.50,R,Teaching 4 Wales Ltd,,
Schools Total,School Group 7 � Pupil Capacity 501-1800,MCC Schools,Employees,Indirect Employee Expenses,Employee Advertising,,30/09/2014,10397285,80030318,160.00,R,Abergavenny Chronicle Co. Ltd,,
Schools Total,School Group 7 � Pupil Capacity 501-1800,MCC Schools,Employees,Indirect Employee Expenses,Free Staff Meals,,12/09/2014,10393610,0,-498.25,R,Accuro Catering Limited,,
Schools Total,School Group 7 � Pupil Capacity 501-1800,MCC Schools,Employees,Indirect Employee Expenses,"Course, Conference And Seminar Fees",,02/09/2014,10392330,80029547,480.00,R,WJEC CBAC Limited,,
Schools Total,Schools,MCC Schools,Employees,Indirect Employee Expenses,"Course, Conference And Seminar Fees",,16/09/2014,10393939,80029992,"1,290.00",R,Reach,,
Schools Total,Schools,MCC Schools,Employees,Indirect Employee Expenses,"Course, Conference And Seminar Fees",,09/09/2014,10392425,0,200.00,R,AQA,,
Schools Effectiveness Grant & Welsh In Education Grant,Schools Better Schools Fund,MCC Schools,Employees,Indirect Employee Expenses,"Course, Conference And Seminar Fees",,19/09/2014,10394627,0,675.00,R,WJEC CBAC Limited,,
Schools Effectiveness Grant & Welsh In Education Grant,Schools Better Schools Fund,MCC Schools,Employees,Indirect Employee Expenses,"Course, Conference And Seminar Fees",,26/09/2014,10395602,0,-230.00,R,Ruth Miskin Literacy Ltd,,
Schools Effectiveness Grant & Welsh In Education Grant,Schools Better Schools Fund,MCC Schools,Employees,Indirect Employee Expenses,"Course, Conference And Seminar Fees",,19/09/2014,10394816,80030127,110.00,R,Cyfleon Ltd,,
Tourism Life & Culture,Tourism,Enterprise,Employees,Indirect Employee Expenses,"Course, Conference And Seminar Fees",,09/09/2014,10392578,10059319,549.00,R,Global Insight Conferences,,
Finance,Finance & Improvement Dept,Chief Executive's Unit,Employees,Indirect Employee Expenses,Enrolment/Course Fees,,12/09/2014,10392829,0,261.00,R,ACCA,,
Democracy & Regulatory Services,Health & Safety,Chief Executive's Unit,Employees,Indirect Employee Expenses,Trade Union Duties,,05/09/2014,10392599,10055843,60.00,R,Bellevue Group Practice,,
Resources,Support Services,Children & Young People,Employees,Direct Employee Expenses,Travel Claims Allowance,,09/09/2014,10392378,0,14.40,R,REDACTED PERSONAL DATA,,
Community Led Delivery,Asset Management,Enterprise,Employees,Direct Employee Expenses,Travelling Expenses,,12/09/2014,10387982,90022115,209.83,R,Redfern Travel,,
Children Services,Children Services Teams,Social Care and Health,Employees,Direct Employee Expenses,Travelling Expenses,,12/09/2014,10387982,10057643,85.11,R,Redfern Travel,,
Schools Total,School Group 2 � Pupil Capacity 144-314,MCC Schools,Premises,"Repairs, Alterations & Maintenance of Buildings",Building Improvements / Maintenance,,30/09/2014,10396421,80028974,37.47,R,Baileys DIY ltd Abergavenny,,
Schools Total,School Group 2 � Pupil Capacity 144-314,MCC Schools,Premises,"Repairs, Alterations & Maintenance of Buildings",Building Improvements / Maintenance,,05/09/2014,10393075,0,32.83,R,Travis Perkins Trading Co Ltd,,
Community Led Delivery,General Fund Housing,Enterprise,Premises,"Repairs, Alterations & Maintenance of Buildings",Building Improvements / Maintenance,,19/09/2014,10394073,0,255.00,R,REDACTED PERSONAL DATA,,
Property & Facilities Management,Property Services & Facilities Management,Operations,Premises,"Repairs, Alterations & Maintenance of Buildings",Building Improvements / Maintenance,,05/09/2014,10392773,90022712,60.00,R,Ambassador Fire & Security LTD,,
Property & Facilities Management,Property Services & Facilities Management,Operations,Premises,"Repairs, Alterations & Maintenance of Buildings",Building Improvements / Maintenance,,30/09/2014,10397619,90022898,75.00,R,Industrial Door Services,,
Property & Facilities Management,Property Services & Facilities Management,Operations,Premises,"Repairs, Alterations & Maintenance of Buildings",Building Improvements / Maintenance,,30/09/2014,10397590,90022901,120.00,R,Industrial Door Services,,
Property & Facilities Management,Property Services & Facilities Management,Operations,Premises,"Repairs, Alterations & Maintenance of Buildings",Building Improvements / Maintenance,,30/09/2014,10397613,90022894,75.00,R,Industrial Door Services,,
Property & Facilities Management,Property Services & Facilities Management,Operations,Premises,"Repairs, Alterations & Maintenance of Buildings",Building Improvements / Maintenance,,30/09/2014,10397614,90022893,75.00,R,Industrial Door Services,,
Property & Facilities Management,Property Services & Facilities Management,Operations,Premises,"Repairs, Alterations & Maintenance of Buildings",Building Improvements / Maintenance,,19/09/2014,10393895,90023509,"1,416.00",R,A.J Quinn Building Contractors Ltd,,
Property & Facilities Management,Property Services & Facilities Management,Operations,Premises,"Repairs, Alterations & Maintenance of Buildings",Building Improvements / Maintenance,,19/09/2014,10392789,90022830,89.00,R,GKR Maintenance & Building Co Ltd,,
Property & Facilities Management,Property Services & Facilities Management,Operations,Premises,"Repairs, Alterations & Maintenance of Buildings",Building Improvements / Maintenance,,19/09/2014,10392789,90022931,39.00,R,GKR Maintenance & Building Co Ltd,,
Property & Facilities Management,Property Services & Facilities Management,Operations,Premises,"Repairs, Alterations & Maintenance of Buildings",Building Improvements / Maintenance,,09/09/2014,10392762,90022559,475.00,R,Ambassador Fire & Security LTD,,
Property & Facilities Management,Property Services & Facilities Management,Operations,Premises,"Repairs, Alterations & Maintenance of Buildings",Building Improvements / Maintenance,,05/09/2014,10392815,90022954,154.21,R,Beechwood Refrigeration,,
Property & Facilities Management,Property Services & Facilities Management,Operations,Premises,"Repairs, Alterations & Maintenance of Buildings",Building Improvements / Maintenance,,09/09/2014,10392739,90022567,40.00,R,Ambassador Fire & Security LTD,,
Property & Facilities Management,Property Services & Facilities Management,Operations,Premises,"Repairs, Alterations & Maintenance of Buildings",Building Improvements / Maintenance,,05/09/2014,10392764,90021475,408.00,R,Ambassador Fire & Security LTD,,
Property & Facilities Management,Property Services & Facilities Management,Operations,Premises,"Repairs, Alterations & Maintenance of Buildings",Building Improvements / Maintenance,,05/09/2014,10392764,90022670,40.00,R,Ambassador Fire & Security LTD,,
Property & Facilities Management,Property Services & Facilities Management,Operations,Premises,"Repairs, Alterations & Maintenance of Buildings",Building Improvements / Maintenance,,05/09/2014,10392850,90023058,360.00,R,Enviroteq,,
Property & Facilities Management,Property Services & Facilities Management,Operations,Premises,"Repairs, Alterations & Maintenance of Buildings",Building Improvements / Maintenance,,02/09/2014,10388472,90022441,46.00,R,GKR Maintenance & Building Co Ltd,,
Property & Facilities Management,Property Services & Facilities Management,Operations,Premises,"Repairs, Alterations & Maintenance of Buildings",Building Improvements / Maintenance,,02/09/2014,10388472,90022539,"1,274.52",R,GKR Maintenance & Building Co Ltd,,
Property & Facilities Management,Property Services & Facilities Management,Operations,Premises,"Repairs, Alterations & Maintenance of Buildings",Building Improvements / Maintenance,,02/09/2014,10388472,90022602,91.00,R,GKR Maintenance & Building Co Ltd,,
Property & Facilities Management,Property Services & Facilities Management,Operations,Premises,"Repairs, Alterations & Maintenance of Buildings",Building Improvements / Maintenance,,02/09/2014,10388471,90022187,154.02,R,GKR Maintenance & Building Co Ltd,,
Property & Facilities Management,Property Services & Facilities Management,Operations,Premises,"Repairs, Alterations & Maintenance of Buildings",Building Improvements / Maintenance,,02/09/2014,10389649,90022694,26.00,R,GKR Maintenance & Building Co Ltd,,
Property & Facilities Management,Property Services & Facilities Management,Operations,Premises,"Repairs, Alterations & Maintenance of Buildings",Building Improvements / Maintenance,,02/09/2014,10390843,90022435,77.00,R,GKR Maintenance & Building Co Ltd,,
Property & Facilities Management,Property Services & Facilities Management,Operations,Premises,"Repairs, Alterations & Maintenance of Buildings",Building Improvements / Maintenance,,26/09/2014,10395386,90023388,25.97,R,Legsun Ltd,,
Property & Facilities Management,Property Services & Facilities Management,Operations,Premises,"Repairs, Alterations & Maintenance of Buildings",Building Improvements / Maintenance,,30/09/2014,10397588,90023665,125.00,R,Industrial Door Services,,
Property & Facilities Management,Property Services & Facilities Management,Operations,Premises,"Repairs, Alterations & Maintenance of Buildings",Building Improvements / Maintenance,,19/09/2014,10394815,90017360,72.00,R,Lorne Stewart  Plc,,
Property & Facilities Management,Property Services & Facilities Management,Operations,Premises,"Repairs, Alterations & Maintenance of Buildings",Building Improvements / Maintenance,,19/09/2014,10394815,90017361,132.00,R,Lorne Stewart  Plc,,
Property & Facilities Management,Property Services & Facilities Management,Operations,Premises,"Repairs, Alterations & Maintenance of Buildings",Building Improvements / Maintenance,,05/09/2014,10392741,90022628,630.43,R,Legsun Ltd,,
Property & Facilities Management,Property Services & Facilities Management,Operations,Premises,"Repairs, Alterations & Maintenance of Buildings",Building Improvements / Maintenance,,05/09/2014,10392757,90023032,59.75,R,Legsun Ltd,,
Property & Facilities Management,Property Services & Facilities Management,Operations,Premises,"Repairs, Alterations & Maintenance of Buildings",Building Improvements / Maintenance,,05/09/2014,10392757,90023033,35.85,R,Legsun Ltd,,
Property & Facilities Management,Property Services & Facilities Management,Operations,Premises,"Repairs, Alterations & Maintenance of Buildings",Building Improvements / Maintenance,,05/09/2014,10392757,90023071,145.73,R,Legsun Ltd,,
Property & Facilities Management,Property Services & Facilities Management,Operations,Premises,"Repairs, Alterations & Maintenance of Buildings",Building Improvements / Maintenance,,09/09/2014,10392821,90023308,75.00,R,Pontypool Glazing Ltd,,
Property & Facilities Management,Property Services & Facilities Management,Operations,Premises,"Repairs, Alterations & Maintenance of Buildings",Building Improvements / Maintenance,,05/09/2014,10392757,90023018,59.75,R,Legsun Ltd,,
Property & Facilities Management,Property Services & Facilities Management,Operations,Premises,"Repairs, Alterations & Maintenance of Buildings",Building Improvements / Maintenance,,02/09/2014,10388472,90022464,23.00,R,GKR Maintenance & Building Co Ltd,,
Property & Facilities Management,Property Services & Facilities Management,Operations,Premises,"Repairs, Alterations & Maintenance of Buildings",Building Improvements / Maintenance,,02/09/2014,10389649,90022633,770.00,R,GKR Maintenance & Building Co Ltd,,
Property & Facilities Management,Property Services & Facilities Management,Operations,Premises,"Repairs, Alterations & Maintenance of Buildings",Building Improvements / Maintenance,,02/09/2014,10389649,90022641,89.37,R,GKR Maintenance & Building Co Ltd,,
Property & Facilities Management,Property Services & Facilities Management,Operations,Premises,"Repairs, Alterations & Maintenance of Buildings",Building Improvements / Maintenance,,02/09/2014,10390843,90022277,108.00,R,GKR Maintenance & Building Co Ltd,,
Property & Facilities Management,Property Services & Facilities Management,Operations,Premises,"Repairs, Alterations & Maintenance of Buildings",Building Improvements / Maintenance,,30/09/2014,10397597,90022183,38.79,R,Fire Safety Direct,,
Property & Facilities Management,Property Services & Facilities Management,Operations,Premises,"Repairs, Alterations & Maintenance of Buildings",Building Improvements / Maintenance,,19/09/2014,10394636,90023445,575.00,R,Santia Asbestos Management Ltd,,
Property & Facilities Management,Property Services & Facilities Management,Operations,Premises,"Repairs, Alterations & Maintenance of Buildings",Building Improvements / Maintenance,,30/09/2014,10397654,90023376,201.50,R,Legsun Ltd,,
Property & Facilities Management,Property Services & Facilities Management,Operations,Premises,"Repairs, Alterations & Maintenance of Buildings",Building Improvements / Maintenance,,19/09/2014,10394741,760002832,98.00,R,P&P Pest Control,,
Property & Facilities Management,Property Services & Facilities Management,Operations,Premises,"Repairs, Alterations & Maintenance of Buildings",Building Improvements / Maintenance,,19/09/2014,10392750,760004521,69.85,R,Legsun Ltd,,
Property & Facilities Management,Property Services & Facilities Management,Operations,Premises,"Repairs, Alterations & Maintenance of Buildings",Building Improvements / Maintenance,,05/09/2014,10392767,760004577,60.00,R,Ambassador Fire & Security LTD,,
Property & Facilities Management,Property Services & Facilities Management,Operations,Premises,"Repairs, Alterations & Maintenance of Buildings",Building Improvements / Maintenance,,05/09/2014,10392768,760004179,90.85,R,Actemium,,
Property & Facilities Management,Property Services & Facilities Management,Operations,Premises,"Repairs, Alterations & Maintenance of Buildings",Building Improvements / Maintenance,,05/09/2014,10392759,760004580,424.38,R,Legsun Ltd,,
Property & Facilities Management,Property Services & Facilities Management,Operations,Premises,"Repairs, Alterations & Maintenance of Buildings",Building Improvements / Maintenance,,05/09/2014,10392771,760004658,23.90,R,Legsun Ltd,,
Property & Facilities Management,Property Services & Facilities Management,Operations,Premises,"Repairs, Alterations & Maintenance of Buildings",Building Improvements / Maintenance,,05/09/2014,10392744,760004376,"3,834.90",R,Legsun Ltd,,
Property & Facilities Management,Property Services & Facilities Management,Operations,Premises,"Repairs, Alterations & Maintenance of Buildings",Building Improvements / Maintenance,,02/09/2014,10388009,760003860,535.00,R,Ambassador Fire & Security LTD,,
Property & Facilities Management,Property Services & Facilities Management,Operations,Premises,"Repairs, Alterations & Maintenance of Buildings",Building Improvements / Maintenance,,02/09/2014,10388009,760004116,40.00,R,Ambassador Fire & Security LTD,,
Property & Facilities Management,Property Services & Facilities Management,Operations,Premises,"Repairs, Alterations & Maintenance of Buildings",Building Improvements / Maintenance,,02/09/2014,10388009,760004410,660.00,R,Ambassador Fire & Security LTD,,
Property & Facilities Management,Property Services & Facilities Management,Operations,Premises,"Repairs, Alterations & Maintenance of Buildings",Building Improvements / Maintenance,,02/09/2014,10388009,760004424,40.00,R,Ambassador Fire & Security LTD,,
Property & Facilities Management,Property Services & Facilities Management,Operations,Premises,"Repairs, Alterations & Maintenance of Buildings",Building Improvements / Maintenance,,19/09/2014,10393888,760002305,"1,200.00",R,Dunbar & Boardman (The Lift & Escalator People),,
Property & Facilities Management,Property Services & Facilities Management,Operations,Premises,"Repairs, Alterations & Maintenance of Buildings",Building Improvements / Maintenance,,26/09/2014,10394754,760004042,60.00,R,Ambassador Fire & Security LTD,,
Property & Facilities Management,Property Services & Facilities Management,Operations,Premises,"Repairs, Alterations & Maintenance of Buildings",Building Improvements / Maintenance,,26/09/2014,10395394,760004672,475.00,R,M2 Flooring Ltd,,
Property & Facilities Management,Property Services & Facilities Management,Operations,Premises,"Repairs, Alterations & Maintenance of Buildings",Building Improvements / Maintenance,,16/09/2014,10393926,760004607,40.00,R,Ambassador Fire & Security LTD,,
Property & Facilities Management,Property Services & Facilities Management,Operations,Premises,"Repairs, Alterations & Maintenance of Buildings",Building Improvements / Maintenance,,16/09/2014,10393926,760004615,"1,650.00",R,Ambassador Fire & Security LTD,,
Property & Facilities Management,Property Services & Facilities Management,Operations,Premises,"Repairs, Alterations & Maintenance of Buildings",Building Improvements / Maintenance,,16/09/2014,10393938,760004664,73.86,R,Legsun Ltd,,
Property & Facilities Management,Property Services & Facilities Management,Operations,Premises,"Repairs, Alterations & Maintenance of Buildings",Building Improvements / Maintenance,,16/09/2014,10393946,760004659,246.31,R,Legsun Ltd,,
Property & Facilities Management,Property Services & Facilities Management,Operations,Premises,"Repairs, Alterations & Maintenance of Buildings",Building Improvements / Maintenance,,16/09/2014,10393946,760004671,90.27,R,Legsun Ltd,,
Property & Facilities Management,Property Services & Facilities Management,Operations,Premises,"Repairs, Alterations & Maintenance of Buildings",Building Improvements / Maintenance,,30/09/2014,10397607,760004481,190.00,R,Industrial Door Services,,
Property & Facilities Management,Property Services & Facilities Management,Operations,Premises,"Repairs, Alterations & Maintenance of Buildings",Building Improvements / Maintenance,,23/09/2014,10394778,760002770,72.00,R,Lorne Stewart  Plc,,
Property & Facilities Management,Property Services & Facilities Management,Operations,Premises,"Repairs, Alterations & Maintenance of Buildings",Building Improvements / Maintenance,,23/09/2014,10394778,760002773,312.00,R,Lorne Stewart  Plc,,
Property & Facilities Management,Property Services & Facilities Management,Operations,Premises,"Repairs, Alterations & Maintenance of Buildings",Building Improvements / Maintenance,,23/09/2014,10394778,760002765,96.00,R,Lorne Stewart  Plc,,
Property & Facilities Management,Property Services & Facilities Management,Operations,Premises,"Repairs, Alterations & Maintenance of Buildings",Building Improvements / Maintenance,,30/09/2014,10397586,760004769,107.98,R,Springvale Wproofing Ltd,,
Property & Facilities Management,Property Services & Facilities Management,Operations,Premises,"Repairs, Alterations & Maintenance of Buildings",Building Improvements / Maintenance,,23/09/2014,10394778,760002761,144.00,R,Lorne Stewart  Plc,,
Schools Total,School Group 7 � Pupil Capacity 501-1800,MCC Schools,Premises,"Repairs, Alterations & Maintenance of Buildings",Premises Repairs And Maintenance,,05/09/2014,10392501,0,14.03,R,Crown Paints Ltd,,
Schools Total,School Group 7 � Pupil Capacity 501-1800,MCC Schools,Premises,"Repairs, Alterations & Maintenance of Buildings",Premises Repairs And Maintenance,,26/09/2014,10395844,80030023,286.40,R,N.J.Harrhy Electrical Contractor,,
Schools Total,School Group 7 � Pupil Capacity 501-1800,MCC Schools,Premises,"Repairs, Alterations & Maintenance of Buildings",Premises Repairs And Maintenance,,05/09/2014,10392996,0,139.45,R,Beechwood Refrigeration,,
Schools Total,School Group 7 � Pupil Capacity 501-1800,MCC Schools,Premises,"Repairs, Alterations & Maintenance of Buildings",Premises Repairs And Maintenance,,30/09/2014,10396796,80030316,374.98,R,Urban Hygiene Ltd,,
Schools Total,School Group 7 � Pupil Capacity 501-1800,MCC Schools,Premises,"Repairs, Alterations & Maintenance of Buildings",Premises Repairs And Maintenance,,26/09/2014,10395668,0,259.20,R,Lock Doctor Services Ltd,,
Schools Total,School Group 7 � Pupil Capacity 501-1800,MCC Schools,Premises,"Repairs, Alterations & Maintenance of Buildings",Premises Repairs And Maintenance,,30/09/2014,10396971,0,38.38,R,Trade UK,,
Schools Total,Schools,MCC Schools,Premises,"Repairs, Alterations & Maintenance of Buildings",Premises Repairs And Maintenance,,16/09/2014,10393921,80029984,250.00,R,REDACTED PERSONAL DATA,,
Schools Total,SCHGRP3 � School Group 3 � Pupil Capacity 315-500,MCC Schools,Premises,"Repairs, Alterations & Maintenance of Buildings",Premises Repairs And Maintenance,,12/09/2014,10393712,80029911,43.76,R,Thomas Brown Electrical Ltd,,
Schools Total,School Group 2 � Pupil Capacity 144-314,MCC Schools,Premises,"Repairs, Alterations & Maintenance of Buildings",Premises Repairs And Maintenance,,26/09/2014,10395563,0,19.98,R,Robert Price Ltd,,
Schools Total,School Group 2 � Pupil Capacity 144-314,MCC Schools,Premises,"Repairs, Alterations & Maintenance of Buildings",Premises Repairs And Maintenance,,19/09/2014,10394403,0,84.23,R,Handyman House (Lydney) Ltd,,
Schools Total,SCHGRP3 � School Group 3 � Pupil Capacity 315-500,MCC Schools,Premises,"Repairs, Alterations & Maintenance of Buildings",Premises Repairs And Maintenance,,30/09/2014,10397093,80030503,"8,717.00",R,Louis Draper Property Maintenance,,
Schools Total,School Group 2 � Pupil Capacity 144-314,MCC Schools,Premises,"Repairs, Alterations & Maintenance of Buildings",Premises Repairs And Maintenance,,30/09/2014,10396560,0,48.60,R,Robert Price Builders Merchants Ltd,,
Property & Facilities Management,Property Services & Facilities Management,Operations,Premises,"Repairs, Alterations & Maintenance of Buildings",Premises Repairs And Maintenance,,02/09/2014,10388471,90022222,32.00,R,GKR Maintenance & Building Co Ltd,,
Property & Facilities Management,Property Services & Facilities Management,Operations,Premises,"Repairs, Alterations & Maintenance of Buildings",Premises Repairs And Maintenance,,26/09/2014,10394583,90023358,"5,929.00",R,ProAV,,
Schools Total,School Group 7 � Pupil Capacity 501-1800,MCC Schools,Premises,"Repairs, Alterations & Maintenance of Buildings",Fire Contract,,05/09/2014,10392506,0,654.74,R,Blackwood Fire Ltd,,
Schools Total,SCHGRP3 � School Group 3 � Pupil Capacity 315-500,MCC Schools,Premises,"Repairs, Alterations & Maintenance of Buildings",Security Of Premises.,,09/09/2014,10393017,0,51.76,R,G4S Secure Solutions (UK) Ltd,,
Youth,Inclusions,Children & Young People,Premises,"Repairs, Alterations & Maintenance of Buildings",Security Of Premises.,,23/09/2014,10394632,0,59.00,R,Chubb Electronic Security Ltd,,
Community Led Delivery,Community Hubs,Enterprise,Premises,"Repairs, Alterations & Maintenance of Buildings",Security Of Premises.,,30/09/2014,10397423,10059563,-13.50,R,British Telecommunications Plc,,
Highways,Highways,Operations,Premises,"Repairs, Alterations & Maintenance of Buildings",Security Of Premises.,,30/09/2014,10396447,0,314.25,R,Remote Management & Security Ltd,,
Schools Total,Schools,MCC Schools,Premises,"Repairs, Alterations & Maintenance of Buildings",Security Maintenance.,,30/09/2014,10397546,0,-529.34,R,Novar Plc,,
Schools Total,SCHGRP3 � School Group 3 � Pupil Capacity 315-500,MCC Schools,Premises,"Repairs, Alterations & Maintenance of Buildings",Security Maintenance.,,19/09/2014,10394788,80030080,153.36,R,Security Centres,,
Resources,Support Services,Children & Young People,Premises,Energy Costs,Electricity.,,12/09/2014,10393778,0,-4.43,R,EDF Energy,,
Resources,Support Services,Children & Young People,Premises,Energy Costs,Electricity.,,12/09/2014,10393781,0,"4,341.71",R,EDF Energy,,
Resources,Support Services,Children & Young People,Premises,Energy Costs,Electricity.,,12/09/2014,10393781,0,-13.72,R,EDF Energy,,
Schools Total,Schools,MCC Schools,Premises,Energy Costs,Electricity.,,02/09/2014,10389923,0,17.67,R,British Gas Business,,
Schools Total,Schools,MCC Schools,Premises,Energy Costs,Electricity.,,02/09/2014,10391680,0,36.45,R,British Gas Business,,
Schools Total,Schools,MCC Schools,Premises,Energy Costs,Electricity.,,30/09/2014,10396623,0,32.63,R,British Gas Business,,
Schools Total,SCHGRP3 � School Group 3 � Pupil Capacity 315-500,MCC Schools,Premises,Energy Costs,Electricity.,,05/09/2014,10384363,0,"1,098.66",R,British Gas Business,,
Schools Total,SCHGRP3 � School Group 3 � Pupil Capacity 315-500,MCC Schools,Premises,Energy Costs,Electricity.,,05/09/2014,10391671,0,884.31,R,British Gas Business,,
Schools Total,School Group 2 � Pupil Capacity 144-314,MCC Schools,Premises,Energy Costs,Electricity.,,02/09/2014,10389897,0,707.34,R,British Gas Business,,
Schools Total,School Group 2 � Pupil Capacity 144-314,MCC Schools,Premises,Energy Costs,Electricity.,,23/09/2014,10394917,0,217.65,R,British Gas Business,,
Schools Total,School Group 2 � Pupil Capacity 144-314,MCC Schools,Premises,Energy Costs,Electricity.,,30/09/2014,10397507,0,42.25,R,British Gas Business,,
Schools Total,School Group 1 � Pupil Capacity 1-143,MCC Schools,Premises,Energy Costs,Electricity.,,02/09/2014,10391676,0,364.71,R,British Gas Business,,
Schools Total,School Group 2 � Pupil Capacity 144-314,MCC Schools,Premises,Energy Costs,Electricity.,,26/09/2014,10395728,0,331.89,R,British Gas Business,,
Individual School Budget,Individual Schools Budget,Children & Young People,Premises,Energy Costs,Electricity.,,23/09/2014,10394660,0,"2,531.89",R,Torfaen County Borough Council,,
Community Led Delivery,General Fund Housing,Enterprise,Premises,Energy Costs,Electricity.,,30/09/2014,10396626,0,1.55,R,British Gas Business,,
Waste & Street Scene,Waste and Street Services,Operations,Premises,Energy Costs,Electricity.,,30/09/2014,10395775,0,-49.38,R,British Gas Business,,
Youth,Inclusions,Children & Young People,Premises,Energy Costs,Electricity.,,23/09/2014,10394827,0,48.74,R,British Gas Business,,
Tourism Life & Culture,Tourism,Enterprise,Premises,Energy Costs,Electricity.,,23/09/2014,10394928,0,408.51,R,British Gas Business,,
Tourism Life & Culture,Tourism,Enterprise,Premises,Energy Costs,Electricity.,,26/09/2014,10395778,0,751.80,R,Scottish Power,,
Tourism Life & Culture,Tourism,Enterprise,Premises,Energy Costs,Electricity.,,30/09/2014,10396602,0,208.79,R,British Gas Business,,
Tourism Life & Culture,Tourism,Enterprise,Premises,Energy Costs,Electricity.,,30/09/2014,10396610,0,88.29,R,British Gas Business,,
Property & Facilities Management,Property Services & Facilities Management,Operations,Premises,Energy Costs,Electricity.,,16/09/2014,10393768,0,"1,292.04",R,EDF Energy,,
Property & Facilities Management,Property Services & Facilities Management,Operations,Premises,Energy Costs,Electricity.,,26/09/2014,10394817,0,22.69,R,British Gas Business,,
Property & Facilities Management,Property Services & Facilities Management,Operations,Premises,Energy Costs,Electricity.,,23/09/2014,10394880,0,38.58,R,British Gas Business,,
Waste & Street Scene,Waste and Street Services,Operations,Premises,Energy Costs,Electricity.,,26/09/2014,10395732,0,277.51,R,British Gas Business,,
Fleet Management & Passenger Transport,Home to School Transport Dept,Operations,Premises,Energy Costs,Electricity.,,30/09/2014,10397485,0,-49.08,R,SWALEC,,
Adult Services,Direct Care Residential,Social Care and Health,Premises,Energy Costs,Electricity.,,26/09/2014,10394851,0,"1,445.84",R,British Gas Business,,
Commercial & People Development,Innovation,Enterprise,Premises,Energy Costs,Electricity.,,16/09/2014,10393791,0,855.86,R,SWALEC,,
Resources,Support Services,Children & Young People,Premises,Energy Costs,Gas.,,30/09/2014,10397380,0,"2,684.41",R,Corona Energy,,
Resources,Support Services,Children & Young People,Premises,Energy Costs,Gas.,,30/09/2014,10397364,0,"4,514.33",R,Corona Energy,,
Schools Total,SCHGRP3 � School Group 3 � Pupil Capacity 315-500,MCC Schools,Premises,Energy Costs,Gas.,,05/09/2014,10391930,0,201.32,R,Corona Energy,,
Schools Total,SCHGRP3 � School Group 3 � Pupil Capacity 315-500,MCC Schools,Premises,Energy Costs,Gas.,,12/09/2014,10391915,0,385.47,R,Corona Energy,,
Schools Total,School Group 2 � Pupil Capacity 144-314,MCC Schools,Premises,Energy Costs,Gas.,,30/09/2014,10397349,0,142.57,R,Corona Energy,,
Schools Total,School Group 2 � Pupil Capacity 144-314,MCC Schools,Premises,Energy Costs,Gas.,,02/09/2014,10391831,0,62.61,R,Corona Energy,,
Schools Total,School Group 2 � Pupil Capacity 144-314,MCC Schools,Premises,Energy Costs,Gas.,,05/09/2014,10391843,0,177.89,R,Corona Energy,,
Schools Total,School Group 2 � Pupil Capacity 144-314,MCC Schools,Premises,Energy Costs,Gas.,,30/09/2014,10397381,0,100.52,R,Corona Energy,,
Schools Total,School Group 2 � Pupil Capacity 144-314,MCC Schools,Premises,Energy Costs,Gas.,,19/09/2014,10391824,0,185.84,R,Corona Energy,,
Community Led Delivery,Community Education,Enterprise,Premises,Energy Costs,Gas.,,30/09/2014,10397385,0,69.59,R,Corona Energy,,
Property & Facilities Management,Property Services & Facilities Management,Operations,Premises,Energy Costs,Gas.,,30/09/2014,10397504,0,-735.74,R,British Gas Business,,
Schools Total,School Group 2 � Pupil Capacity 144-314,MCC Schools,Premises,Water Services,Water Services-Metered.,,23/09/2014,10395140,0,963.05,R,Welsh Water,,
Schools Total,School Group 2 � Pupil Capacity 144-314,MCC Schools,Premises,Water Services,Water Services-Metered.,,05/09/2014,10386455,0,"1,394.87",R,Welsh Water,,
Schools Total,SCHGRP3 � School Group 3 � Pupil Capacity 315-500,MCC Schools,Premises,Water Services,Water Services-Metered.,,05/09/2014,10391720,0,"1,467.94",R,Welsh Water,,
Youth,Inclusions,Children & Young People,Premises,Water Services,Water Services-Metered.,,23/09/2014,10392595,0,101.86,R,Welsh Water,,
Community Led Delivery,Asset Management,Enterprise,Premises,Water Services,Water Services-Metered.,,19/09/2014,10394433,0,94.24,R,Welsh Water,,
Community Led Delivery,General Fund Housing,Enterprise,Premises,Rents,Rents/Hire Of Premises.,,19/09/2014,10394061,0,440.00,R,REDACTED PERSONAL DATA,,
Children Services,Children Services Teams,Social Care and Health,Premises,Rents,Rents/Hire Of Premises.,,19/09/2014,10394658,0,33.00,R,Bridges Community Centre,,
Commissioning,Commissioning Strategy,Social Care and Health,Premises,Rents,Rents/Hire Of Premises.,,09/09/2014,10389261,0,30.00,R,Bridges Community Centre,,
Adult Services,Grant Schemes SHS,Social Care and Health,Premises,Rents,Rents/Hire Of Premises.,,26/09/2014,10389581,0,59.50,R,The Lion Hotel,,
Children Services,Children Services Teams,Social Care and Health,Premises,Premises Insurance,Premises Insurance(Indirect),,09/09/2014,10393303,0,38.66,R,Johnsey Estates (1990) Ltd,,
Children Services,Children Services Teams,Social Care and Health,Premises,Premises Insurance,Premises Insurance(Indirect),,09/09/2014,10393306,0,684.03,R,Johnsey Estates (1990) Ltd,,
Property & Facilities Management,Property Services & Facilities Management,Operations,Premises,Cleaning and Domestic Supplies,Contract Cleaning - Premises (Direct),,19/09/2014,10394307,0,"18,248.50",R,Regent Cleaning,,
Schools Total,School Group 7 � Pupil Capacity 501-1800,MCC Schools,Premises,Cleaning and Domestic Supplies,Contract Cleaning - Premises (Direct),,30/09/2014,10396909,0,68.86,R,Churchill Contract Services,,
Schools Total,School Group 7 � Pupil Capacity 501-1800,MCC Schools,Premises,Cleaning and Domestic Supplies,Contract Cleaning - Premises (Direct),,16/09/2014,10394043,80027520,180.00,R,Litmus Partnership Ltd,,
Schools Total,School Group 7 � Pupil Capacity 501-1800,MCC Schools,Premises,Cleaning and Domestic Supplies,Contract Cleaning - Premises (Direct),,02/09/2014,10392450,0,270.83,R,Litmus Partnership Ltd,,
Schools Total,School Group 7 � Pupil Capacity 501-1800,MCC Schools,Premises,Cleaning and Domestic Supplies,Contract Cleaning - Premises (Direct),,30/09/2014,10396965,0,"11,237.04",R,Regent Office Care Ltd,,
Tourism Life & Culture,Leisure Services,Enterprise,Premises,Cleaning and Domestic Supplies,Contract Cleaning - Premises (Direct),,19/09/2014,10394910,10059332,"3,550.49",R,Regent Cleaning,,
Tourism Life & Culture,Leisure Services,Enterprise,Premises,Cleaning and Domestic Supplies,Contract Cleaning - Premises (Direct),,16/09/2014,10394049,10056097,90.00,R,Litmus Partnership Ltd,,
Tourism Life & Culture,Leisure Services,Enterprise,Premises,Cleaning and Domestic Supplies,Contract Cleaning - Premises (Direct),,16/09/2014,10394013,10059385,129.96,R,H D Adcock (Nelson) Ltd,,
Adult Services,Direct Care,Social Care and Health,Premises,Cleaning and Domestic Supplies,Contract Cleaning - Premises (Direct),,26/09/2014,10396199,10059637,53.44,R,Paragon,,
Resources & Performance,,Social Care and Health,Premises,Cleaning and Domestic Supplies,Window Cleaning,,19/09/2014,10394144,0,40.53,R,OCS Group UK Limited,,
Schools Total,School Group 7 � Pupil Capacity 501-1800,MCC Schools,Premises,Cleaning and Domestic Supplies,Refuse Collection,,02/09/2014,10392335,80028202,460.72,R,Veolia Environmental Services Ltd,,
Schools Total,School Group 7 � Pupil Capacity 501-1800,MCC Schools,Premises,Cleaning and Domestic Supplies,Refuse Collection,,30/09/2014,10396529,80028202,85.57,R,Veolia Environmental Services Ltd,,
Schools Total,School Group 2 � Pupil Capacity 144-314,MCC Schools,Premises,Cleaning and Domestic Supplies,Refuse Collection,,23/09/2014,10394463,0,-457.60,R,Monmouthshire C.C.,,
Schools Total,School Group 7 � Pupil Capacity 501-1800,MCC Schools,Premises,Cleaning and Domestic Supplies,Toilet Requisites,,23/09/2014,10395087,80030058,4.29,R,OCS Group UK Limited,,
Schools Total,School Group 2 � Pupil Capacity 144-314,MCC Schools,Premises,Cleaning and Domestic Supplies,Toilet Requisites,,19/09/2014,10394161,0,36.84,R,Newhall Janitorial Ltd,,
Adult Services,Day Centres,Social Care and Health,Premises,Cleaning and Domestic Supplies,Toilet Requisites,,02/09/2014,10392340,10059018,300.00,R,Pyramid Hygiene Ltd,,
Schools Total,School Group 7 � Pupil Capacity 501-1800,MCC Schools,Supplies & Services,"Repairs, Alterations & Maintenance of Buildings",Skip Hire,,30/09/2014,10396155,0,190.00,R,Rb Skip Hire,,
Schools Total,School Group 2 � Pupil Capacity 144-314,MCC Schools,Supplies & Services,Catering,Catering,,26/09/2014,10395624,0,13.35,R,Peter Broughton Ltd,,
Schools Total,School Group 2 � Pupil Capacity 144-314,MCC Schools,Supplies & Services,Catering,Catering,,30/09/2014,10396566,0,90.73,R,Michael I Holdsworth Limited,,
Schools Total,School Group 2 � Pupil Capacity 144-314,MCC Schools,Supplies & Services,Catering,Catering,,30/09/2014,10396568,0,228.34,R,Michael I Holdsworth Limited,,
Schools Total,School Group 2 � Pupil Capacity 144-314,MCC Schools,Supplies & Services,Catering,Catering,,05/09/2014,10393049,0,57.75,R,Monmouthshire C.C.,,
Standards,Early Years,Children & Young People,Supplies & Services,Catering,Catering,,12/09/2014,10393561,0,205.00,R,Carls Catering,,
Standards,Early Years,Children & Young People,Supplies & Services,Catering,Catering,,12/09/2014,10393562,0,235.00,R,Carls Catering,,
Schools Total,School Group 2 � Pupil Capacity 144-314,MCC Schools,Supplies & Services,Cleaning and Domestic Supplies,Pest Control,,30/09/2014,10396535,80027660,91.00,R,P&P Pest Control,,
Schools Total,School Group 2 � Pupil Capacity 144-314,MCC Schools,Supplies & Services,Cleaning and Domestic Supplies,Pest Control,,26/09/2014,10395399,0,91.00,R,P&P Pest Control,,
Highways,Highways,Operations,Supplies & Services,Cleaning and Domestic Supplies,Pest Control,,12/09/2014,10393864,0,96.00,R,P&P Pest Control,,
Highways,Highways,Operations,Supplies & Services,Cleaning and Domestic Supplies,Pest Control,,12/09/2014,10393866,0,470.00,R,P&P Pest Control,,
Schools Total,School Group 7 � Pupil Capacity 501-1800,MCC Schools,Supplies & Services,"Equipment, Furniture and Materials",Equipment Purchases,,12/09/2014,10393327,0,271.38,R,REDACTED DATA,,
Schools Total,School Group 7 � Pupil Capacity 501-1800,MCC Schools,Supplies & Services,"Equipment, Furniture and Materials",Equipment Purchases,,19/09/2014,10394552,80030275,410.00,R,Abergavenny Music,,
Schools Total,School Group 7 � Pupil Capacity 501-1800,MCC Schools,Supplies & Services,"Equipment, Furniture and Materials",Equipment Purchases,,05/09/2014,10392142,80028860,9.54,R,ESPO,,
Schools Total,School Group 7 � Pupil Capacity 501-1800,MCC Schools,Supplies & Services,"Equipment, Furniture and Materials",Equipment Purchases,,05/09/2014,10390921,80029687,10.65,R,ESPO,,
Schools Total,School Group 7 � Pupil Capacity 501-1800,MCC Schools,Supplies & Services,"Equipment, Furniture and Materials",Equipment Purchases,,05/09/2014,10390159,80029530,3.00,R,ESPO,,
Schools Total,School Group 7 � Pupil Capacity 501-1800,MCC Schools,Supplies & Services,"Equipment, Furniture and Materials",Equipment Purchases,,12/09/2014,10393367,0,500.00,R,Archway School,,
Schools Total,School Group 7 � Pupil Capacity 501-1800,MCC Schools,Supplies & Services,"Equipment, Furniture and Materials",Equipment Purchases,,16/09/2014,10394236,80029857,12.30,R,JPR Electronics,,
Schools Total,School Group 7 � Pupil Capacity 501-1800,MCC Schools,Supplies & Services,"Equipment, Furniture and Materials",Equipment Purchases,,30/09/2014,10396982,80029080,56.05,R,ESPO,,
Schools Total,School Group 7 � Pupil Capacity 501-1800,MCC Schools,Supplies & Services,"Equipment, Furniture and Materials",Equipment Purchases,,30/09/2014,10396449,80029936,28.61,R,ESPO,,
Schools Total,School Group 7 � Pupil Capacity 501-1800,MCC Schools,Supplies & Services,"Equipment, Furniture and Materials",Equipment Purchases,,23/09/2014,10395055,80030117,69.00,R,Inkjets and Toners,,
Schools Total,School Group 7 � Pupil Capacity 501-1800,MCC Schools,Supplies & Services,"Equipment, Furniture and Materials",Equipment Purchases,,23/09/2014,10395055,80030117,138.00,R,Inkjets and Toners,,
Schools Total,School Group 7 � Pupil Capacity 501-1800,MCC Schools,Supplies & Services,"Equipment, Furniture and Materials",Equipment Purchases,,23/09/2014,10395056,80030088,376.00,R,Springfield Business Papers,,
Schools Total,School Group 7 � Pupil Capacity 501-1800,MCC Schools,Supplies & Services,"Equipment, Furniture and Materials",Equipment Purchases,,30/09/2014,10396444,80029943,15.40,R,ESPO,,
Schools Total,School Group 2 � Pupil Capacity 144-314,MCC Schools,Supplies & Services,"Equipment, Furniture and Materials",Equipment Purchases,,23/09/2014,10394616,0,18.25,R,ESPO,,
Schools Total,School Group 2 � Pupil Capacity 144-314,MCC Schools,Supplies & Services,"Equipment, Furniture and Materials",Equipment Purchases,,05/09/2014,10387897,80028464,112.50,R,Sports Directory,,
Schools Total,School Group 1 � Pupil Capacity 1-143,MCC Schools,Supplies & Services,"Equipment, Furniture and Materials",Equipment Purchases,,19/09/2014,10394938,80029463,17.81,R,The Consortium,,
Schools Total,School Group 1 � Pupil Capacity 1-143,MCC Schools,Supplies & Services,"Equipment, Furniture and Materials",Equipment Purchases,,19/09/2014,10394942,80028811,80.51,R,The Consortium,,
Schools Total,SCHGRP3 � School Group 3 � Pupil Capacity 315-500,MCC Schools,Supplies & Services,"Equipment, Furniture and Materials",Equipment Purchases,,26/09/2014,10387798,80029586,37.96,R,TTS Group Ltd,,
Schools Total,SCHGRP3 � School Group 3 � Pupil Capacity 315-500,MCC Schools,Supplies & Services,"Equipment, Furniture and Materials",Equipment Purchases,,26/09/2014,10393948,80029183,111.91,R,The Consortium,,
Schools Total,SCHGRP3 � School Group 3 � Pupil Capacity 315-500,MCC Schools,Supplies & Services,"Equipment, Furniture and Materials",Equipment Purchases,,26/09/2014,10395430,0,926.25,R,Gwent Wildlife Trust,,
Schools Total,SCHGRP3 � School Group 3 � Pupil Capacity 315-500,MCC Schools,Supplies & Services,"Equipment, Furniture and Materials",Equipment Purchases,,16/09/2014,10386162,80029378,5.50,R,Hope Education Ltd,,
Schools Total,SCHGRP3 � School Group 3 � Pupil Capacity 315-500,MCC Schools,Supplies & Services,"Equipment, Furniture and Materials",Equipment Purchases,,16/09/2014,10386649,80029618,279.22,R,The Consortium,,
Schools Total,SCHGRP3 � School Group 3 � Pupil Capacity 315-500,MCC Schools,Supplies & Services,"Equipment, Furniture and Materials",Equipment Purchases,,23/09/2014,10385817,80029584,154.15,R,The Consortium,,
Schools Total,School Group 2 � Pupil Capacity 144-314,MCC Schools,Supplies & Services,"Equipment, Furniture and Materials",Equipment Purchases,,12/09/2014,10393480,0,145.50,R,Fibrous Ltd,,
Schools Total,School Group 2 � Pupil Capacity 144-314,MCC Schools,Supplies & Services,"Equipment, Furniture and Materials",Equipment Purchases,,05/09/2014,10392147,80029465,56.85,R,ESPO,,
Schools Total,School Group 2 � Pupil Capacity 144-314,MCC Schools,Supplies & Services,"Equipment, Furniture and Materials",Equipment Purchases,,26/09/2014,10396025,80030146,172.00,R,Westfield4Schools,,
Schools Total,School Group 2 � Pupil Capacity 144-314,MCC Schools,Supplies & Services,"Equipment, Furniture and Materials",Equipment Purchases,,26/09/2014,10396036,80029898,34.38,R,GLS Educational Supplies Ltd,,
Schools Total,School Group 2 � Pupil Capacity 144-314,MCC Schools,Supplies & Services,"Equipment, Furniture and Materials",Equipment Purchases,,26/09/2014,10396037,80029897,51.96,R,GLS Educational Supplies Ltd,,
Schools Total,School Group 2 � Pupil Capacity 144-314,MCC Schools,Supplies & Services,"Equipment, Furniture and Materials",Equipment Purchases,,26/09/2014,10396038,80029876,3.30,R,GLS Educational Supplies Ltd,,
Schools Total,School Group 2 � Pupil Capacity 144-314,MCC Schools,Supplies & Services,"Equipment, Furniture and Materials",Equipment Purchases,,30/09/2014,10397222,80029193,299.99,R,Cosy,,
Schools Total,School Group 2 � Pupil Capacity 144-314,MCC Schools,Supplies & Services,"Equipment, Furniture and Materials",Equipment Purchases,,30/09/2014,10397222,80029193,5.00,R,Cosy,,
Schools Total,SCHGRP3 � School Group 3 � Pupil Capacity 315-500,MCC Schools,Supplies & Services,"Equipment, Furniture and Materials",Equipment Purchases,,30/09/2014,10396879,80028937,111.72,R,West Mercia Suppliers,,
Schools Total,School Group 2 � Pupil Capacity 144-314,MCC Schools,Supplies & Services,"Equipment, Furniture and Materials",Equipment Purchases,,09/09/2014,10392350,80029653,15.80,R,The Consortium,,
Schools Total,School Group 2 � Pupil Capacity 144-314,MCC Schools,Supplies & Services,"Equipment, Furniture and Materials",Equipment Purchases,,02/09/2014,10385096,0,205.75,R,Infotone Imaging Supplies,,
Schools Total,School Group 2 � Pupil Capacity 144-314,MCC Schools,Supplies & Services,"Equipment, Furniture and Materials",Equipment Purchases,,02/09/2014,10385099,0,56.04,R,Eureka 1st Aid & Safety for Schools,,
Schools Total,School Group 2 � Pupil Capacity 144-314,MCC Schools,Supplies & Services,"Equipment, Furniture and Materials",Equipment Purchases,,02/09/2014,10384780,0,48.41,R,The Consortium,,
Schools Total,School Group 1 � Pupil Capacity 1-143,MCC Schools,Supplies & Services,"Equipment, Furniture and Materials",Equipment Purchases,,02/09/2014,10384983,80029166,308.29,R,ESPO,,
Schools Total,School Group 2 � Pupil Capacity 144-314,MCC Schools,Supplies & Services,"Equipment, Furniture and Materials",Equipment Purchases,,05/09/2014,10387834,80029299,32.00,R,ESPO,,
Schools Total,School Group 2 � Pupil Capacity 144-314,MCC Schools,Supplies & Services,"Equipment, Furniture and Materials",Equipment Purchases,,30/09/2014,10396986,0,12.43,R,Auto Press Education,,
Schools Total,School Group 2 � Pupil Capacity 144-314,MCC Schools,Supplies & Services,"Equipment, Furniture and Materials",Equipment Purchases,,05/09/2014,10393073,0,228.08,R,ESPO,,
Schools Total,School Group 2 � Pupil Capacity 144-314,MCC Schools,Supplies & Services,"Equipment, Furniture and Materials",Equipment Purchases,,05/09/2014,10393059,0,1.95,R,ESPO,,
Schools Total,School Group 2 � Pupil Capacity 144-314,MCC Schools,Supplies & Services,"Equipment, Furniture and Materials",Equipment Purchases,,05/09/2014,10393061,0,90.30,R,ESPO,,
Schools Total,School Group 2 � Pupil Capacity 144-314,MCC Schools,Supplies & Services,"Equipment, Furniture and Materials",Equipment Purchases,,12/09/2014,10393496,0,10.95,R,ESPO,,
Schools Total,School Group 2 � Pupil Capacity 144-314,MCC Schools,Supplies & Services,"Equipment, Furniture and Materials",Equipment Purchases,,30/09/2014,10397071,80027953,77.77,R,ESPO,,
Schools Total,School Group 2 � Pupil Capacity 144-314,MCC Schools,Supplies & Services,"Equipment, Furniture and Materials",Equipment Purchases,,30/09/2014,10396938,0,164.57,R,ESPO,,
Schools Total,School Group 2 � Pupil Capacity 144-314,MCC Schools,Supplies & Services,"Equipment, Furniture and Materials",Equipment Purchases,,12/09/2014,10393554,0,2.15,R,ESPO,,
Standards,Inclusions,Children & Young People,Supplies & Services,"Equipment, Furniture and Materials",Equipment Purchases,,26/09/2014,10395883,10057810,279.20,R,TTS Group Ltd,,
Standards,Additional Learning Needs,Children & Young People,Supplies & Services,"Equipment, Furniture and Materials",Equipment Purchases,,19/09/2014,10393695,10058940,"1,992.00",R,R82 UK Ltd,,
Schools Effectiveness Grant & Welsh In Education Grant,Schools Better Schools Fund,MCC Schools,Supplies & Services,"Equipment, Furniture and Materials",Equipment Purchases,,12/09/2014,10393505,0,407.50,R,Crick Software,,
Waste & Street Scene,Waste and Street Services,Operations,Supplies & Services,"Equipment, Furniture and Materials",Equipment Purchases,,30/09/2014,10396491,10058840,683.50,R,Wybone Ltd,,
Tourism Life & Culture,Cultural Services,Enterprise,Supplies & Services,"Equipment, Furniture and Materials",Equipment Purchases,,30/09/2014,10397028,0,169.95,R,Up And Under Outdoor Gear Ltd.,,
Children Services,Children Services Teams,Social Care and Health,Supplies & Services,"Equipment, Furniture and Materials",Equipment Purchases,,12/09/2014,10393618,0,39.99,R,REDACTED DATA,,
Adult Services,Direct Care Residential,Social Care and Health,Supplies & Services,"Equipment, Furniture and Materials",Equipment Purchases,,16/09/2014,10393540,0,19.72,R,REDACTED DATA,,
Schools Total,School Group 7 � Pupil Capacity 501-1800,MCC Schools,Supplies & Services,"Equipment, Furniture and Materials",Health & Safety Equipment.,,02/09/2014,10392438,0,"1,200.00",R,Bob Ritchie Ltd,,
Schools Total,School Group 7 � Pupil Capacity 501-1800,MCC Schools,Supplies & Services,"Equipment, Furniture and Materials",Health & Safety Equipment.,,30/09/2014,10396976,0,245.00,R,MDR Theatre Services,,
Schools Total,School Group 2 � Pupil Capacity 144-314,MCC Schools,Supplies & Services,"Equipment, Furniture and Materials",Health & Safety Equipment.,,09/09/2014,10392350,80029653,26.97,R,The Consortium,,
Standards,Additional Learning Needs,Children & Young People,Supplies & Services,"Equipment, Furniture and Materials",Health & Safety Equipment.,,23/09/2014,10391958,0,18.21,R,OCS Group UK Limited,,
Schools Total,School Group 2 � Pupil Capacity 144-314,MCC Schools,Supplies & Services,"Equipment, Furniture and Materials",Rental / Hire,,16/09/2014,10394103,80029922,51.99,R,OCS Group UK Limited,,
Schools Total,School Group 1 � Pupil Capacity 1-143,MCC Schools,Supplies & Services,"Equipment, Furniture and Materials",Rental / Hire,,30/09/2014,10397532,0,225.00,R,Siemens Financial Services Ltd,,
Schools Total,SCHGRP3 � School Group 3 � Pupil Capacity 315-500,MCC Schools,Supplies & Services,"Equipment, Furniture and Materials",Rental / Hire,,16/09/2014,10394139,0,110.50,R,Investec Asset Finance,,
Community Led Delivery,General Fund Housing,Enterprise,Supplies & Services,"Equipment, Furniture and Materials",Fire Safety Equipment,,30/09/2014,10397471,0,97.00,R,Inferno Fire Safety and Security Solutions Ltd,,
Fleet Management & Passenger Transport,Transport Department,Operations,Supplies & Services,"Equipment, Furniture and Materials",Repairs & Maintenance.,,26/09/2014,10396071,0,51.15,R,Safety-Kleen Uk Ltd,,
Tourism Life & Culture,Tourism,Enterprise,Supplies & Services,"Equipment, Furniture and Materials",Repairs & Maintenance.,,02/09/2014,10392084,0,103.50,R,REDACTED PERSONAL DATA,,
Fleet Management & Passenger Transport,Transport Department,Operations,Supplies & Services,"Equipment, Furniture and Materials",Materials & Consumables.,,26/09/2014,10395717,0,93.36,R,Mon & Border Motor Factors Ltd,,
Property & Facilities Management,Property Services & Facilities Management,Operations,Supplies & Services,"Equipment, Furniture and Materials",Materials & Consumables.,,23/09/2014,10394424,0,"1,006.52",R,Total Produce (Hereford),,
Property & Facilities Management,Property Services & Facilities Management,Operations,Supplies & Services,"Equipment, Furniture and Materials",Materials & Consumables.,,19/09/2014,10394303,0,748.02,R,Welsh Bros Foods Ltd,,
Property & Facilities Management,Property Services & Facilities Management,Operations,Supplies & Services,"Equipment, Furniture and Materials",Materials & Consumables.,,19/09/2014,10394305,0,219.66,R,Castell Howell Foods Ltd,,
Schools Total,School Group 7 � Pupil Capacity 501-1800,MCC Schools,Supplies & Services,"Equipment, Furniture and Materials",Materials & Consumables.,,02/09/2014,10392336,80029058,2.63,R,Scientific & Chemical Sup. Ltd,,
Schools Total,School Group 7 � Pupil Capacity 501-1800,MCC Schools,Supplies & Services,"Equipment, Furniture and Materials",Materials & Consumables.,,26/09/2014,10395804,80030103,645.00,R,Springfield Business Papers,,
Schools Total,School Group 7 � Pupil Capacity 501-1800,MCC Schools,Supplies & Services,"Equipment, Furniture and Materials",Materials & Consumables.,,12/09/2014,10393327,0,10.57,R,REDACTED DATA,,
Schools Total,School Group 7 � Pupil Capacity 501-1800,MCC Schools,Supplies & Services,"Equipment, Furniture and Materials",Materials & Consumables.,,16/09/2014,10394097,80028887,29.87,R,TTS Group Ltd,,
Schools Total,School Group 7 � Pupil Capacity 501-1800,MCC Schools,Supplies & Services,"Equipment, Furniture and Materials",Materials & Consumables.,,30/09/2014,10396757,80030038,7.50,R,ESPO,,
Schools Total,School Group 7 � Pupil Capacity 501-1800,MCC Schools,Supplies & Services,"Equipment, Furniture and Materials",Materials & Consumables.,,30/09/2014,10396914,0,6.10,R,Colorfoto Ltd,,
Schools Total,School Group 7 � Pupil Capacity 501-1800,MCC Schools,Supplies & Services,"Equipment, Furniture and Materials",Materials & Consumables.,,26/09/2014,10395794,80029833,12.70,R,YPO,,
Schools Total,Schools,MCC Schools,Supplies & Services,"Equipment, Furniture and Materials",Materials & Consumables.,,12/09/2014,10393326,0,30.71,R,REDACTED DATA,,
Schools Total,Schools,MCC Schools,Supplies & Services,"Equipment, Furniture and Materials",Materials & Consumables.,,30/09/2014,10396425,80029978,37.50,R,ESPO,,
Schools Total,School Group 1 � Pupil Capacity 1-143,MCC Schools,Supplies & Services,"Equipment, Furniture and Materials",Materials & Consumables.,,26/09/2014,10395029,80029779,44.58,R,Crown Paints Ltd,,
Schools Total,SCHGRP3 � School Group 3 � Pupil Capacity 315-500,MCC Schools,Supplies & Services,"Equipment, Furniture and Materials",Materials & Consumables.,,30/09/2014,10386690,0,18.45,R,The Consortium,,
Schools Total,SCHGRP3 � School Group 3 � Pupil Capacity 315-500,MCC Schools,Supplies & Services,"Equipment, Furniture and Materials",Materials & Consumables.,,26/09/2014,10396179,80030164,13.90,R,ESPO,,
Schools Total,SCHGRP3 � School Group 3 � Pupil Capacity 315-500,MCC Schools,Supplies & Services,"Equipment, Furniture and Materials",Materials & Consumables.,,26/09/2014,10396184,80030168,67.54,R,ESPO,,
Schools Total,SCHGRP3 � School Group 3 � Pupil Capacity 315-500,MCC Schools,Supplies & Services,"Equipment, Furniture and Materials",Materials & Consumables.,,26/09/2014,10396188,80030165,50.70,R,Westfield4Schools,,
Schools Total,School Group 2 � Pupil Capacity 144-314,MCC Schools,Supplies & Services,"Equipment, Furniture and Materials",Materials & Consumables.,,30/09/2014,10396798,80030036,19.68,R,The Consortium,,
Schools Total,SCHGRP3 � School Group 3 � Pupil Capacity 315-500,MCC Schools,Supplies & Services,"Equipment, Furniture and Materials",Materials & Consumables.,,12/09/2014,10393721,80029387,179.24,R,ESPO,,
Schools Total,SCHGRP3 � School Group 3 � Pupil Capacity 315-500,MCC Schools,Supplies & Services,"Equipment, Furniture and Materials",Materials & Consumables.,,12/09/2014,10393687,80029387,5.35,R,ESPO,,
Schools Total,SCHGRP3 � School Group 3 � Pupil Capacity 315-500,MCC Schools,Supplies & Services,"Equipment, Furniture and Materials",Materials & Consumables.,,26/09/2014,10395969,0,51.35,R,Phs Group,,
Schools Total,School Group 2 � Pupil Capacity 144-314,MCC Schools,Supplies & Services,"Equipment, Furniture and Materials",Materials & Consumables.,,12/09/2014,10385485,80029446,"1,394.23",R,TTS Group Ltd,,
Schools Total,School Group 2 � Pupil Capacity 144-314,MCC Schools,Supplies & Services,"Equipment, Furniture and Materials",Materials & Consumables.,,26/09/2014,10395530,80030007,239.25,R,Hope Education Ltd,,
Schools Total,School Group 2 � Pupil Capacity 144-314,MCC Schools,Supplies & Services,"Equipment, Furniture and Materials",Materials & Consumables.,,12/09/2014,10387160,80029776,19.75,R,Hope Education Ltd,,
Schools Total,School Group 1 � Pupil Capacity 1-143,MCC Schools,Supplies & Services,"Equipment, Furniture and Materials",Materials & Consumables.,,30/09/2014,10397428,80030472,63.10,R,The Colour Centre,,
Schools Total,School Group 1 � Pupil Capacity 1-143,MCC Schools,Supplies & Services,"Equipment, Furniture and Materials",Materials & Consumables.,,30/09/2014,10397429,80030472,287.40,R,The Colour Centre,,
Schools Total,School Group 1 � Pupil Capacity 1-143,MCC Schools,Supplies & Services,"Equipment, Furniture and Materials",Materials & Consumables.,,30/09/2014,10397432,80030471,11.21,R,Travis Perkins Trading Co Ltd,,
Schools Total,SCHGRP3 � School Group 3 � Pupil Capacity 315-500,MCC Schools,Supplies & Services,"Equipment, Furniture and Materials",Materials & Consumables.,,19/09/2014,10394774,80029505,25.00,R,ESPO,,
Schools Total,School Group 2 � Pupil Capacity 144-314,MCC Schools,Supplies & Services,"Equipment, Furniture and Materials",Materials & Consumables.,,02/09/2014,10388172,0,91.94,R,Balan Sports International Ltd,,
Schools Total,School Group 2 � Pupil Capacity 144-314,MCC Schools,Supplies & Services,"Equipment, Furniture and Materials",Materials & Consumables.,,30/09/2014,10396507,80029662,117.06,R,The Consortium,,
Schools Total,School Group 2 � Pupil Capacity 144-314,MCC Schools,Supplies & Services,"Equipment, Furniture and Materials",Materials & Consumables.,,19/09/2014,10390711,80029423,13.00,R,ESPO,,
Schools Total,School Group 2 � Pupil Capacity 144-314,MCC Schools,Supplies & Services,"Equipment, Furniture and Materials",Materials & Consumables.,,05/09/2014,10390443,80029322,58.29,R,Traidcraft plc,,
Schools Total,School Group 2 � Pupil Capacity 144-314,MCC Schools,Supplies & Services,"Equipment, Furniture and Materials",Materials & Consumables.,,05/09/2014,10390692,80029423,86.35,R,ESPO,,
Schools Total,School Group 2 � Pupil Capacity 144-314,MCC Schools,Supplies & Services,"Equipment, Furniture and Materials",Materials & Consumables.,,30/09/2014,10396876,10059452,121.80,R,ESPO,,
Schools Total,School Group 2 � Pupil Capacity 144-314,MCC Schools,Supplies & Services,"Equipment, Furniture and Materials",Materials & Consumables.,,30/09/2014,10395416,0,320.00,R,Set (Office Supplies) Limited,,
Schools Total,School Group 2 � Pupil Capacity 144-314,MCC Schools,Supplies & Services,"Equipment, Furniture and Materials",Materials & Consumables.,,30/09/2014,10396558,0,22.94,R,The Consortium,,
Schools Total,School Group 2 � Pupil Capacity 144-314,MCC Schools,Supplies & Services,"Equipment, Furniture and Materials",Materials & Consumables.,,19/09/2014,10394563,80028915,17.32,R,ESPO,,
Schools Total,School Group 2 � Pupil Capacity 144-314,MCC Schools,Supplies & Services,"Equipment, Furniture and Materials",Materials & Consumables.,,26/09/2014,10396168,80027864,13.20,R,Redbridge Produce & Flowers,,
Schools Total,School Group 2 � Pupil Capacity 144-314,MCC Schools,Supplies & Services,"Equipment, Furniture and Materials",Materials & Consumables.,,26/09/2014,10396170,80027864,8.80,R,Redbridge Produce & Flowers,,
Schools Total,School Group 2 � Pupil Capacity 144-314,MCC Schools,Supplies & Services,"Equipment, Furniture and Materials",Materials & Consumables.,,30/09/2014,10397422,80028903,308.00,R,ESPO,,
Standards,Early Years,Children & Young People,Supplies & Services,"Equipment, Furniture and Materials",Materials & Consumables.,,26/09/2014,10395443,10059043,95.25,R,Bradbury Milk,,
Standards,Early Years,Children & Young People,Supplies & Services,"Equipment, Furniture and Materials",Materials & Consumables.,,26/09/2014,10395453,10059125,63.80,R,Redbridge Produce & Flowers,,
Standards,Early Years,Children & Young People,Supplies & Services,"Equipment, Furniture and Materials",Materials & Consumables.,,26/09/2014,10395442,10059043,66.00,R,Bradbury Milk,,
Standards,Early Years,Children & Young People,Supplies & Services,"Equipment, Furniture and Materials",Materials & Consumables.,,30/09/2014,10396499,10059123,29.92,R,Redbridge Produce & Flowers,,
Standards,Early Years,Children & Young People,Supplies & Services,"Equipment, Furniture and Materials",Materials & Consumables.,,30/09/2014,10396464,10059126,18.00,R,Bradbury Milk,,
Standards,Early Years,Children & Young People,Supplies & Services,"Equipment, Furniture and Materials",Materials & Consumables.,,30/09/2014,10396474,10059151,98.75,R,Lloyds Dairies,,
Standards,Inclusions,Children & Young People,Supplies & Services,"Equipment, Furniture and Materials",Materials & Consumables.,,30/09/2014,10396872,10059635,85.90,R,Hope Education Ltd,,
Tourism Life & Culture,Cultural Services,Enterprise,Supplies & Services,"Equipment, Furniture and Materials",Materials & Consumables.,,05/09/2014,10390676,10059009,2.96,R,Viking Direct Ltd,,
Tourism Life & Culture,Cultural Services,Enterprise,Supplies & Services,"Equipment, Furniture and Materials",Materials & Consumables.,,12/09/2014,10393727,0,162.00,R,Sphere Professional,,
Community Led Delivery,Community Hubs,Enterprise,Supplies & Services,"Equipment, Furniture and Materials",Materials & Consumables.,,26/09/2014,10394904,10055613,853.60,R,Northgate Info Solution UK Ltd,,
Waste & Street Scene,Waste and Street Services,Operations,Supplies & Services,"Equipment, Furniture and Materials",Materials & Consumables.,,26/09/2014,10395950,0,190.00,R,Tennants Distribution Limited,,
Waste & Street Scene,Waste and Street Services,Operations,Supplies & Services,"Equipment, Furniture and Materials",Materials & Consumables.,,09/09/2014,10393269,0,36.44,R,Shorts Auto Elect. Swansea Ltd,,
Waste & Street Scene,Waste and Street Services,Operations,Supplies & Services,"Equipment, Furniture and Materials",Materials & Consumables.,,23/09/2014,10394346,0,60.84,R,Robert Price Builders Merchants Ltd,,
Waste & Street Scene,Waste and Street Services,Operations,Supplies & Services,"Equipment, Furniture and Materials",Materials & Consumables.,,19/09/2014,10394315,0,74.49,R,Forest Sand,,
Waste & Street Scene,Waste and Street Services,Operations,Supplies & Services,"Equipment, Furniture and Materials",Materials & Consumables.,,19/09/2014,10394323,0,33.49,R,Forest Sand,,
Waste & Street Scene,Waste and Street Services,Operations,Supplies & Services,"Equipment, Furniture and Materials",Materials & Consumables.,,19/09/2014,10394328,0,130.00,R,Garth Engineering,,
Waste & Street Scene,Waste and Street Services,Operations,Supplies & Services,"Equipment, Furniture and Materials",Materials & Consumables.,,09/09/2014,10393282,0,46.64,R,Fast Fluid Power Ltd,,
Waste & Street Scene,Waste and Street Services,Operations,Supplies & Services,"Equipment, Furniture and Materials",Materials & Consumables.,,09/09/2014,10393283,0,35.20,R,Fast Fluid Power Ltd,,
Waste & Street Scene,Waste and Street Services,Operations,Supplies & Services,"Equipment, Furniture and Materials",Materials & Consumables.,,09/09/2014,10393257,0,53.44,R,Robert Price Builders Merchants Ltd,,
Waste & Street Scene,Waste and Street Services,Operations,Supplies & Services,"Equipment, Furniture and Materials",Materials & Consumables.,,09/09/2014,10393292,10058539,45.00,R,Nomix Enviro,,
Waste & Street Scene,Waste and Street Services,Operations,Supplies & Services,"Equipment, Furniture and Materials",Materials & Consumables.,,09/09/2014,10393293,10058938,241.85,R,Frontier Agriculture Ltd,,
Highways,Highways,Operations,Supplies & Services,"Equipment, Furniture and Materials",Materials & Consumables.,,19/09/2014,10394451,808952,"1,235.28",R,Robert Price Builders Merchants Ltd,,
Highways,Highways,Operations,Supplies & Services,"Equipment, Furniture and Materials",Materials & Consumables.,,26/09/2014,10395949,0,190.00,R,Tennants Distribution Limited,,
Highways,Highways,Operations,Supplies & Services,"Equipment, Furniture and Materials",Materials & Consumables.,,05/09/2014,10392625,808714,910.00,R,Tom Prichard Contracting Ltd,,
Highways,Highways,Operations,Supplies & Services,"Equipment, Furniture and Materials",Materials & Consumables.,,05/09/2014,10392628,808714,"1,583.75",R,Tom Prichard Contracting Ltd,,
Highways,Highways,Operations,Supplies & Services,"Equipment, Furniture and Materials",Materials & Consumables.,,05/09/2014,10392619,808540,647.50,R,Tom Prichard Contracting Ltd,,
Highways,Highways,Operations,Supplies & Services,"Equipment, Furniture and Materials",Materials & Consumables.,,19/09/2014,10394408,808935,95.20,R,Tata Steel UK Ltd,,
Highways,Highways,Operations,Supplies & Services,"Equipment, Furniture and Materials",Materials & Consumables.,,05/09/2014,10392619,808540,743.75,R,Tom Prichard Contracting Ltd,,
Highways,Highways,Operations,Supplies & Services,"Equipment, Furniture and Materials",Materials & Consumables.,,05/09/2014,10392629,808714,35.00,R,Tom Prichard Contracting Ltd,,
Highways,Highways,Operations,Supplies & Services,"Equipment, Furniture and Materials",Materials & Consumables.,,05/09/2014,10392631,808714,218.75,R,Tom Prichard Contracting Ltd,,
Adult Services,Direct Care,Social Care and Health,Supplies & Services,"Equipment, Furniture and Materials",Materials & Consumables.,,30/09/2014,10397295,10055712,347.40,R,Gloveman Supplies Ltd,,
Adult Services,Day Centres,Social Care and Health,Supplies & Services,"Equipment, Furniture and Materials",Materials & Consumables.,,30/09/2014,10396811,0,119.74,R,REDACTED DATA,,
Adult Services,Day Centres,Social Care and Health,Supplies & Services,"Equipment, Furniture and Materials",Materials & Consumables.,,30/09/2014,10396811,0,28.97,R,REDACTED DATA,,
Adult Services,Direct Care,Social Care and Health,Supplies & Services,"Equipment, Furniture and Materials",Materials & Consumables.,,02/09/2014,10389562,0,1.55,R,REDACTED DATA,,
Schools Total,School Group 2 � Pupil Capacity 144-314,MCC Schools,Supplies & Services,"Equipment, Furniture and Materials",Provisions.,,26/09/2014,10395445,80030065,12.80,R,REDACTED PERSONAL DATA,,
Schools Effectiveness Grant & Welsh In Education Grant,Schools Better Schools Fund,MCC Schools,Supplies & Services,"Equipment, Furniture and Materials",Provisions.,,05/09/2014,10385038,0,20.23,R,Total Produce (Hereford),,
Tourism Life & Culture,Leisure Services,Enterprise,Supplies & Services,"Equipment, Furniture and Materials",Provisions.,,19/09/2014,10394837,10059525,62.51,R,Chapple & Jenkins Wholesale,,
Tourism Life & Culture,Leisure Services,Enterprise,Supplies & Services,"Equipment, Furniture and Materials",Provisions.,,02/09/2014,10391552,10058949,465.56,R,Chapple & Jenkins Wholesale,,
Tourism Life & Culture,Leisure Services,Enterprise,Supplies & Services,"Equipment, Furniture and Materials",Provisions.,,02/09/2014,10392036,0,377.37,R,Chapple & Jenkins Wholesale,,
Tourism Life & Culture,Leisure Services,Enterprise,Supplies & Services,"Equipment, Furniture and Materials",Provisions.,,30/09/2014,10396459,10059533,536.22,R,Chapple & Jenkins Wholesale,,
Tourism Life & Culture,Leisure Services,Enterprise,Supplies & Services,"Equipment, Furniture and Materials",Provisions.,,30/09/2014,10396530,10059646,324.25,R,Chapple & Jenkins Wholesale,,
Tourism Life & Culture,Cultural Services,Enterprise,Supplies & Services,"Equipment, Furniture and Materials",Provisions.,,30/09/2014,10397053,0,398.32,R,Castell Howell Foods Ltd,,
Tourism Life & Culture,Cultural Services,Enterprise,Supplies & Services,"Equipment, Furniture and Materials",Provisions.,,30/09/2014,10397035,0,8.57,R,Co-operative Group Ltd,,
Tourism Life & Culture,Cultural Services,Enterprise,Supplies & Services,"Equipment, Furniture and Materials",Provisions.,,30/09/2014,10397036,0,15.03,R,Co-operative Group Ltd,,
Tourism Life & Culture,Cultural Services,Enterprise,Supplies & Services,"Equipment, Furniture and Materials",Provisions.,,30/09/2014,10397042,0,82.91,R,Michael I Holdsworth Limited,,
Tourism Life & Culture,Cultural Services,Enterprise,Supplies & Services,"Equipment, Furniture and Materials",Provisions.,,30/09/2014,10397043,0,22.72,R,Michael I Holdsworth Limited,,
Tourism Life & Culture,Cultural Services,Enterprise,Supplies & Services,"Equipment, Furniture and Materials",Provisions.,,30/09/2014,10397043,0,53.56,R,Michael I Holdsworth Limited,,
Tourism Life & Culture,Cultural Services,Enterprise,Supplies & Services,"Equipment, Furniture and Materials",Provisions.,,30/09/2014,10397051,0,85.47,R,Castell Howell Foods Ltd,,
Tourism Life & Culture,Cultural Services,Enterprise,Supplies & Services,"Equipment, Furniture and Materials",Provisions.,,26/09/2014,10395946,0,8.72,R,Wm Morrison Supermarkets PLC,,
Tourism Life & Culture,Cultural Services,Enterprise,Supplies & Services,"Equipment, Furniture and Materials",Provisions.,,30/09/2014,10396896,0,71.03,R,Total Produce (Hereford),,
Adult Services,Direct Care Residential,Social Care and Health,Supplies & Services,"Equipment, Furniture and Materials",Provisions.,,02/09/2014,10392247,10055700,49.13,R,REDACTED PERSONAL DATA,,
Adult Services,Direct Care Residential,Social Care and Health,Supplies & Services,"Equipment, Furniture and Materials",Provisions.,,02/09/2014,10392355,10055701,15.18,R,Douglas Willis Ltd,,
Adult Services,Direct Care Residential,Social Care and Health,Supplies & Services,"Equipment, Furniture and Materials",Provisions.,,12/09/2014,10393397,10059365,2.75,R,Peters Food Service LTD,,
Adult Services,Direct Care Residential,Social Care and Health,Supplies & Services,"Equipment, Furniture and Materials",Provisions.,,30/09/2014,10397665,10055701,53.01,R,Douglas Willis Ltd,,
Adult Services,Direct Care Residential,Social Care and Health,Supplies & Services,"Equipment, Furniture and Materials",Provisions.,,30/09/2014,10396477,10055713,-9.92,R,Michael I Holdsworth Limited,,
Adult Services,Direct Care,Social Care and Health,Supplies & Services,"Equipment, Furniture and Materials",Provisions.,,19/09/2014,10394367,10055886,-13.84,R,Apetito Ltd,,
Adult Services,Day Centres,Social Care and Health,Supplies & Services,"Equipment, Furniture and Materials",Provisions.,,30/09/2014,10396848,10059280,17.52,R,Princes Gate Cool Water Ltd,,
Adult Services,Direct Care Residential,Social Care and Health,Supplies & Services,"Equipment, Furniture and Materials",Provisions.,,12/09/2014,10393683,10055888,320.44,R,Castell Howell Foods Ltd,,
Adult Services,Direct Care Residential,Social Care and Health,Supplies & Services,"Equipment, Furniture and Materials",Provisions.,,12/09/2014,10393632,10055888,239.14,R,Castell Howell Foods Ltd,,
Adult Services,Direct Care Residential,Social Care and Health,Supplies & Services,"Equipment, Furniture and Materials",Provisions.,,16/09/2014,10393540,0,243.81,R,REDACTED DATA,,
Adult Services,Direct Care Residential,Social Care and Health,Supplies & Services,"Equipment, Furniture and Materials",Provisions.,,30/09/2014,10396722,10055854,76.46,R,Michael I Holdsworth Limited,,
Adult Services,Direct Care Residential,Social Care and Health,Supplies & Services,"Equipment, Furniture and Materials",Provisions.,,30/09/2014,10396721,10055855,77.39,R,Douglas Willis Ltd,,
Property & Facilities Management,Property Services & Facilities Management,Operations,Supplies & Services,"Equipment, Furniture and Materials",Cleaning Materials.,,16/09/2014,10393198,0,196.88,R,Newhall Janitorial Ltd,,
Property & Facilities Management,Property Services & Facilities Management,Operations,Supplies & Services,"Equipment, Furniture and Materials",Cleaning Materials.,,30/09/2014,10396696,0,285.35,R,H D Adcock (Nelson) Ltd,,
Property & Facilities Management,Property Services & Facilities Management,Operations,Supplies & Services,"Equipment, Furniture and Materials",Cleaning Materials.,,09/09/2014,10393232,0,107.60,R,Newhall Janitorial Ltd,,
Property & Facilities Management,Property Services & Facilities Management,Operations,Supplies & Services,"Equipment, Furniture and Materials",Cleaning Materials.,,09/09/2014,10393237,0,50.24,R,Newhall Janitorial Ltd,,
Property & Facilities Management,Property Services & Facilities Management,Operations,Supplies & Services,"Equipment, Furniture and Materials",Cleaning Materials.,,09/09/2014,10393214,0,108.75,R,Newhall Janitorial Ltd,,
Property & Facilities Management,Property Services & Facilities Management,Operations,Supplies & Services,"Equipment, Furniture and Materials",Cleaning Materials.,,09/09/2014,10393184,0,72.50,R,Newhall Janitorial Ltd,,
Schools Total,School Group 2 � Pupil Capacity 144-314,MCC Schools,Supplies & Services,"Equipment, Furniture and Materials",Cleaning Materials.,,30/09/2014,10396717,80029970,99.02,R,Newhall Janitorial Ltd,,
Schools Total,School Group 2 � Pupil Capacity 144-314,MCC Schools,Supplies & Services,"Equipment, Furniture and Materials",Cleaning Materials.,,30/09/2014,10396537,80028013,197.04,R,Newhall Janitorial Ltd,,
Schools Total,School Group 2 � Pupil Capacity 144-314,MCC Schools,Supplies & Services,"Equipment, Furniture and Materials",Cleaning Materials.,,02/09/2014,10390831,80028855,141.70,R,Newhall Janitorial Ltd,,
Schools Total,School Group 2 � Pupil Capacity 144-314,MCC Schools,Supplies & Services,"Equipment, Furniture and Materials",Cleaning Materials.,,30/09/2014,10396874,10059416,3.54,R,ESPO,,
Fleet Management & Passenger Transport,Home to School Transport Dept,Operations,Supplies & Services,"Equipment, Furniture and Materials",Cleaning Materials.,,16/09/2014,10394095,10059247,16.00,R,One Stop Solutions,,
Adult Services,Direct Care,Social Care and Health,Supplies & Services,"Equipment, Furniture and Materials",Cleaning Materials.,,02/09/2014,10392358,10058966,76.38,R,DeliverNet Wales & West Limited,,
Tourism Life & Culture,Leisure Services,Enterprise,Supplies & Services,Catering,Cafe,,12/09/2014,10393406,10059359,12.12,R,Lloyds Dairies,,
Tourism Life & Culture,Leisure Services,Enterprise,Supplies & Services,Catering,Cafe,,26/09/2014,10396005,10059367,221.66,R,Molson Coors Brewing Company (UK) Ltd,,
Tourism Life & Culture,Leisure Services,Enterprise,Supplies & Services,Catering,Cafe,,30/09/2014,10397201,10059712,140.86,R,Michael I Holdsworth Limited,,
Tourism Life & Culture,Leisure Services,Enterprise,Supplies & Services,Catering,Cafe,,02/09/2014,10391432,10058878,3.09,R,Chapple & Jenkins Wholesale,,
Tourism Life & Culture,Leisure Services,Enterprise,Supplies & Services,Catering,Cafe,,02/09/2014,10391494,0,-4.39,R,Chapple & Jenkins Wholesale,,
Tourism Life & Culture,Leisure Services,Enterprise,Supplies & Services,Catering,Cafe,,30/09/2014,10396405,10059550,4.00,R,REDACTED PERSONAL DATA,,
Schools Total,School Group 7 � Pupil Capacity 501-1800,MCC Schools,Supplies & Services,Expenses,Exam Fees (Schools),,05/09/2014,10392494,0,"2,222.10",R,Pearson,,
Schools Total,School Group 7 � Pupil Capacity 501-1800,MCC Schools,Supplies & Services,Expenses,Exam Fees (Schools),,05/09/2014,10392495,0,483.00,R,Pearson,,
Schools Total,School Group 7 � Pupil Capacity 501-1800,MCC Schools,Supplies & Services,Expenses,Exam Fees (Schools),,05/09/2014,10392994,0,"9,894.70",R,Pearson,,
Schools Total,School Group 7 � Pupil Capacity 501-1800,MCC Schools,Supplies & Services,Expenses,Exam Fees (Schools),,30/09/2014,10395659,0,19.73,R,Pearson,,
Schools Total,School Group 7 � Pupil Capacity 501-1800,MCC Schools,Supplies & Services,Expenses,Exam Fees (Schools),,16/09/2014,10394179,0,"3,590.70",R,Pearson,,
Schools Total,School Group 7 � Pupil Capacity 501-1800,MCC Schools,Supplies & Services,Expenses,Exam Fees (Schools),,16/09/2014,10394120,0,48.30,R,Pearson,,
Schools Total,School Group 7 � Pupil Capacity 501-1800,MCC Schools,Supplies & Services,Expenses,Exam Fees (Schools),,16/09/2014,10394111,0,12.08,R,Pearson,,
Schools Total,School Group 7 � Pupil Capacity 501-1800,MCC Schools,Supplies & Services,Expenses,Exam Fees (Schools),,30/09/2014,10396543,0,12.08,R,Pearson,,
Tourism Life & Culture,Leisure Services,Enterprise,Supplies & Services,"Equipment, Furniture and Materials",General Goods For Resale.,,16/09/2014,10394052,10059293,431.79,R,Swimrite Supplies Ltd,,
Tourism Life & Culture,Leisure Services,Enterprise,Supplies & Services,"Equipment, Furniture and Materials",General Goods For Resale.,,02/09/2014,10392325,10058791,160.77,R,Swimrite Supplies Ltd,,
Commercial & People Development,Business Growth & Enterprise,Enterprise,Supplies & Services,Expenses,Non Employee Training Courses,,30/09/2014,10396833,10059672,347.50,R,The Royal Hotel,,
Schools Total,School Group 2 � Pupil Capacity 144-314,MCC Schools,Supplies & Services,"Equipment, Furniture and Materials",Furniture Purchases / Replacement,,12/09/2014,10393627,80028739,2.58,R,West Mercia Suppliers,,
Adult Services,Direct Care Residential,Social Care and Health,Supplies & Services,"Equipment, Furniture and Materials",Furniture Purchases / Replacement,,30/09/2014,10396785,10059720,8.51,R,Neopost Limited,,
Adult Services,Day Centres,Social Care and Health,Supplies & Services,"Equipment, Furniture and Materials",Furniture Purchases / Replacement,,02/09/2014,10392343,10057602,472.92,R,Argos Business Solutions,,
Schools Total,School Group 2 � Pupil Capacity 144-314,MCC Schools,Supplies & Services,"Equipment, Furniture and Materials",Sanitac Units,,12/09/2014,10393751,0,8.58,R,OCS Group UK Limited,,
Standards,Additional Learning Needs,Children & Young People,Supplies & Services,"Equipment, Furniture and Materials",Sanitac Units,,05/09/2014,10392648,10059273,62.40,R,OCS Group UK Limited,,
Schools Total,School Group 7 � Pupil Capacity 501-1800,MCC Schools,Supplies & Services,"Printing, Stationery and General Office Expenses",Photocopying.,,26/09/2014,10395684,0,37.20,R,Springfield Business Papers,,
Schools Total,School Group 2 � Pupil Capacity 144-314,MCC Schools,Supplies & Services,"Printing, Stationery and General Office Expenses",Photocopying.,,23/09/2014,10394611,0,414.64,R,Konica Minolta Bus. Solutions (UK) Ltd,,
Schools Total,School Group 2 � Pupil Capacity 144-314,MCC Schools,Supplies & Services,"Printing, Stationery and General Office Expenses",Photocopying.,,19/09/2014,10394170,0,189.97,R,The Danwood Group Ltd,,
Schools Total,School Group 2 � Pupil Capacity 144-314,MCC Schools,Supplies & Services,"Printing, Stationery and General Office Expenses",Photocopying.,,26/09/2014,10395414,0,262.69,R,Xerox Uk Ltd,,
Schools Total,School Group 2 � Pupil Capacity 144-314,MCC Schools,Supplies & Services,"Printing, Stationery and General Office Expenses",Photocopying.,,19/09/2014,10394482,0,86.75,R,Clarity Copiers LTD,,
Schools Total,School Group 2 � Pupil Capacity 144-314,MCC Schools,Supplies & Services,"Printing, Stationery and General Office Expenses",Photocopying.,,23/09/2014,10395148,0,27.92,R,Konica Minolta Bus. Solutions (UK) Ltd,,
Schools Total,School Group 1 � Pupil Capacity 1-143,MCC Schools,Supplies & Services,"Printing, Stationery and General Office Expenses",Colour Photocopying,,30/09/2014,10397537,0,430.31,R,Premier Copier Solutions Ltd,,
Schools Total,School Group 7 � Pupil Capacity 501-1800,MCC Schools,Supplies & Services,"Printing, Stationery and General Office Expenses",Stationery,,19/09/2014,10394572,80029788,432.82,R,ESPO,,
Schools Total,School Group 7 � Pupil Capacity 501-1800,MCC Schools,Supplies & Services,"Printing, Stationery and General Office Expenses",Stationery,,30/09/2014,10396451,80029931,21.75,R,ESPO,,
Schools Total,School Group 7 � Pupil Capacity 501-1800,MCC Schools,Supplies & Services,"Printing, Stationery and General Office Expenses",Stationery,,30/09/2014,10396951,80028995,37.35,R,ESPO,,
Schools Total,School Group 7 � Pupil Capacity 501-1800,MCC Schools,Supplies & Services,"Printing, Stationery and General Office Expenses",Stationery,,05/09/2014,10392892,80029815,7.30,R,Educational Planning Books,,
Schools Total,School Group 7 � Pupil Capacity 501-1800,MCC Schools,Supplies & Services,"Printing, Stationery and General Office Expenses",Stationery,,05/09/2014,10392900,80029829,7.30,R,ESPO,,
Schools Total,School Group 7 � Pupil Capacity 501-1800,MCC Schools,Supplies & Services,"Printing, Stationery and General Office Expenses",Stationery,,02/09/2014,10392018,80029820,380.03,R,ESPO,,
Schools Total,School Group 7 � Pupil Capacity 501-1800,MCC Schools,Supplies & Services,"Printing, Stationery and General Office Expenses",Stationery,,12/09/2014,10393455,80028828,1.98,R,ESPO,,
Schools Total,School Group 7 � Pupil Capacity 501-1800,MCC Schools,Supplies & Services,"Printing, Stationery and General Office Expenses",Stationery,,26/09/2014,10396048,80029804,126.63,R,Springfield Business Papers,,
Schools Total,School Group 7 � Pupil Capacity 501-1800,MCC Schools,Supplies & Services,"Printing, Stationery and General Office Expenses",Stationery,,26/09/2014,10396044,80029927,3.65,R,ESPO,,
Schools Total,School Group 7 � Pupil Capacity 501-1800,MCC Schools,Supplies & Services,"Printing, Stationery and General Office Expenses",Stationery,,16/09/2014,10394017,80029822,28.82,R,The Consortium,,
Schools Total,School Group 7 � Pupil Capacity 501-1800,MCC Schools,Supplies & Services,"Printing, Stationery and General Office Expenses",Stationery,,09/09/2014,10392305,80029506,89.50,R,ESPO,,
Schools Total,School Group 7 � Pupil Capacity 501-1800,MCC Schools,Supplies & Services,"Printing, Stationery and General Office Expenses",Stationery,,09/09/2014,10392315,80025686,3.84,R,Sci-Mart Ltd,,
Schools Total,School Group 7 � Pupil Capacity 501-1800,MCC Schools,Supplies & Services,"Printing, Stationery and General Office Expenses",Stationery,,09/09/2014,10392255,80028873,13.92,R,ESPO,,
Schools Total,School Group 7 � Pupil Capacity 501-1800,MCC Schools,Supplies & Services,"Printing, Stationery and General Office Expenses",Stationery,,09/09/2014,10392284,80028944,36.95,R,ESPO,,
Schools Total,School Group 7 � Pupil Capacity 501-1800,MCC Schools,Supplies & Services,"Printing, Stationery and General Office Expenses",Stationery,,09/09/2014,10390974,80029531,94.00,R,Heart Educational Supplies,,
Schools Total,School Group 7 � Pupil Capacity 501-1800,MCC Schools,Supplies & Services,"Printing, Stationery and General Office Expenses",Stationery,,26/09/2014,10395665,0,142.00,R,ESPO,,
Schools Total,School Group 7 � Pupil Capacity 501-1800,MCC Schools,Supplies & Services,"Printing, Stationery and General Office Expenses",Stationery,,26/09/2014,10395758,0,25.00,R,REDACTED DATA,,
Schools Total,School Group 7 � Pupil Capacity 501-1800,MCC Schools,Supplies & Services,"Printing, Stationery and General Office Expenses",Stationery,,26/09/2014,10395758,0,100.00,R,REDACTED DATA,,
Schools Total,School Group 7 � Pupil Capacity 501-1800,MCC Schools,Supplies & Services,"Printing, Stationery and General Office Expenses",Stationery,,26/09/2014,10395758,0,25.00,R,REDACTED DATA,,
Schools Total,School Group 7 � Pupil Capacity 501-1800,MCC Schools,Supplies & Services,"Printing, Stationery and General Office Expenses",Stationery,,26/09/2014,10395758,0,66.67,R,REDACTED DATA,,
Schools Total,School Group 7 � Pupil Capacity 501-1800,MCC Schools,Supplies & Services,"Printing, Stationery and General Office Expenses",Stationery,,26/09/2014,10395669,0,5.49,R,Music Sales Ltd,,
Schools Total,School Group 7 � Pupil Capacity 501-1800,MCC Schools,Supplies & Services,"Printing, Stationery and General Office Expenses",Stationery,,26/09/2014,10395670,0,3.92,R,DS Music,,
Schools Total,School Group 7 � Pupil Capacity 501-1800,MCC Schools,Supplies & Services,"Printing, Stationery and General Office Expenses",Stationery,,16/09/2014,10393800,80028964,9.30,R,ESPO,,
Schools Total,School Group 7 � Pupil Capacity 501-1800,MCC Schools,Supplies & Services,"Printing, Stationery and General Office Expenses",Stationery,,30/09/2014,10396980,0,111.00,R,Meridian Business Support,,
Schools Total,School Group 7 � Pupil Capacity 501-1800,MCC Schools,Supplies & Services,"Printing, Stationery and General Office Expenses",Stationery,,30/09/2014,10396001,0,23.72,R,The Partially Sighted Society,,
Schools Total,School Group 7 � Pupil Capacity 501-1800,MCC Schools,Supplies & Services,"Printing, Stationery and General Office Expenses",Stationery,,30/09/2014,10396013,0,760.55,R,Essential Sewing Services,,
Schools Total,School Group 7 � Pupil Capacity 501-1800,MCC Schools,Supplies & Services,"Printing, Stationery and General Office Expenses",Stationery,,30/09/2014,10396510,80029735,9.66,R,ESPO,,
Schools Total,School Group 7 � Pupil Capacity 501-1800,MCC Schools,Supplies & Services,"Printing, Stationery and General Office Expenses",Stationery,,23/09/2014,10394874,80028697,21.64,R,ESPO,,
Schools Total,School Group 7 � Pupil Capacity 501-1800,MCC Schools,Supplies & Services,"Printing, Stationery and General Office Expenses",Stationery,,30/09/2014,10397478,0,"1,341.00",R,British Rowing Ltd,,
Schools Total,School Group 7 � Pupil Capacity 501-1800,MCC Schools,Supplies & Services,"Printing, Stationery and General Office Expenses",Stationery,,30/09/2014,10396517,80028564,5.58,R,ESPO,,
Schools Total,School Group 2 � Pupil Capacity 144-314,MCC Schools,Supplies & Services,"Printing, Stationery and General Office Expenses",Stationery,,30/09/2014,10396794,80030293,74.89,R,Banner Business Supplies Ltd,,
Schools Total,School Group 2 � Pupil Capacity 144-314,MCC Schools,Supplies & Services,"Printing, Stationery and General Office Expenses",Stationery,,02/09/2014,10391603,80029612,111.55,R,ESPO,,
Schools Total,School Group 2 � Pupil Capacity 144-314,MCC Schools,Supplies & Services,"Printing, Stationery and General Office Expenses",Stationery,,19/09/2014,10394477,0,84.50,R,Set (Office Supplies) Limited,,
Schools Total,School Group 2 � Pupil Capacity 144-314,MCC Schools,Supplies & Services,"Printing, Stationery and General Office Expenses",Stationery,,19/09/2014,10394494,0,59.55,R,The Consortium,,
Schools Total,School Group 2 � Pupil Capacity 144-314,MCC Schools,Supplies & Services,"Printing, Stationery and General Office Expenses",Stationery,,26/09/2014,10390923,80029570,232.95,R,ESPO,,
Schools Total,School Group 2 � Pupil Capacity 144-314,MCC Schools,Supplies & Services,"Printing, Stationery and General Office Expenses",Stationery,,26/09/2014,10390945,80029321,14.05,R,ESPO,,
Schools Total,School Group 2 � Pupil Capacity 144-314,MCC Schools,Supplies & Services,"Printing, Stationery and General Office Expenses",Stationery,,26/09/2014,10390946,80029321,22.75,R,ESPO,,
Schools Total,School Group 2 � Pupil Capacity 144-314,MCC Schools,Supplies & Services,"Printing, Stationery and General Office Expenses",Stationery,,30/09/2014,10396706,80029507,8.26,R,Yorkshire Purchasing,,
Schools Total,School Group 2 � Pupil Capacity 144-314,MCC Schools,Supplies & Services,"Printing, Stationery and General Office Expenses",Stationery,,30/09/2014,10396711,80029233,15.52,R,Yorkshire Purchasing,,
Schools Total,Schools,MCC Schools,Supplies & Services,"Printing, Stationery and General Office Expenses",Stationery,,19/09/2014,10385007,10058162,13.60,R,Banner Business Supplies Ltd,,
Property & Facilities Management,Property Services & Facilities Management,Operations,Supplies & Services,"Printing, Stationery and General Office Expenses",Stationery,,02/09/2014,10392042,10058773,741.00,R,Newport Printing Co Ltd,,
Property & Facilities Management,Property Services & Facilities Management,Operations,Supplies & Services,"Printing, Stationery and General Office Expenses",Stationery,,26/09/2014,10395501,10059527,251.44,R,Thirsty Cups Ltd,,
Property & Facilities Management,Property Services & Facilities Management,Operations,Supplies & Services,"Printing, Stationery and General Office Expenses",Stationery,,26/09/2014,10395462,10057949,83.32,R,Maplin Electronics,,
Property & Facilities Management,Property Services & Facilities Management,Operations,Supplies & Services,"Printing, Stationery and General Office Expenses",Stationery,,12/09/2014,10393571,0,117.00,R,Banner Business Supplies Ltd,,
Property & Facilities Management,Property Services & Facilities Management,Operations,Supplies & Services,"Printing, Stationery and General Office Expenses",Stationery,,30/09/2014,10397309,10059537,41.87,R,Banner Business Supplies Ltd,,
Property & Facilities Management,Property Services & Facilities Management,Operations,Supplies & Services,"Printing, Stationery and General Office Expenses",Stationery,,30/09/2014,10397310,10059542,-9.43,R,Banner Business Supplies Ltd,,
Property & Facilities Management,Property Services & Facilities Management,Operations,Supplies & Services,"Printing, Stationery and General Office Expenses",Stationery,,30/09/2014,10397310,10059542,9.43,R,Banner Business Supplies Ltd,,
Property & Facilities Management,Property Services & Facilities Management,Operations,Supplies & Services,"Printing, Stationery and General Office Expenses",Stationery,,30/09/2014,10396888,10059524,44.00,R,ESPO,,
Property & Facilities Management,Property Services & Facilities Management,Operations,Supplies & Services,"Printing, Stationery and General Office Expenses",Stationery,,30/09/2014,10396867,10057941,59.50,R,ESPO,,
Community Led Delivery,Community Education,Enterprise,Supplies & Services,"Printing, Stationery and General Office Expenses",Stationery,,26/09/2014,10395470,10059487,4.00,R,City & Guilds,,
Community Led Delivery,Community Education,Enterprise,Supplies & Services,"Printing, Stationery and General Office Expenses",Stationery,,16/09/2014,10393671,10059353,8.00,R,City & Guilds,,
Adult Services,Day Centres,Social Care and Health,Supplies & Services,"Printing, Stationery and General Office Expenses",Stationery,,09/09/2014,10392549,10059037,25.89,R,Banner Business Supplies Ltd,,
Resources & Performance,,Social Care and Health,Supplies & Services,"Printing, Stationery and General Office Expenses",Stationery,,30/09/2014,10396727,10059590,1.50,R,Nu Key,,
Schools Total,School Group 7 � Pupil Capacity 501-1800,MCC Schools,Supplies & Services,"Printing, Stationery and General Office Expenses",Publications,,30/09/2014,10396455,80030082,129.95,R,Pearson Publishing,,
Schools Total,School Group 7 � Pupil Capacity 501-1800,MCC Schools,Supplies & Services,"Printing, Stationery and General Office Expenses",Publications,,26/09/2014,10395758,0,45.00,R,REDACTED DATA,,
Schools Total,SCHGRP3 � School Group 3 � Pupil Capacity 315-500,MCC Schools,Supplies & Services,"Printing, Stationery and General Office Expenses",Publications,,26/09/2014,10395433,0,199.00,R,NACE,,
Schools Effectiveness Grant & Welsh In Education Grant,Schools Better Schools Fund,MCC Schools,Supplies & Services,"Printing, Stationery and General Office Expenses",Publications,,23/09/2014,10395114,80029118,17.02,R,EAS ( South East Wales),,
Democracy & Regulatory Services,Customer Relations,Chief Executive's Unit,Supplies & Services,"Printing, Stationery and General Office Expenses",Publications,,02/09/2014,10390771,10058397,62.00,R,Zenith Media (MWL Print Group Ltd),,
Schools Total,School Group 7 � Pupil Capacity 501-1800,MCC Schools,Supplies & Services,"Printing, Stationery and General Office Expenses",Book Purchases,,19/09/2014,10394572,80029788,60.00,R,ESPO,,
Schools Total,School Group 7 � Pupil Capacity 501-1800,MCC Schools,Supplies & Services,"Printing, Stationery and General Office Expenses",Book Purchases,,30/09/2014,10396448,80029788,165.00,R,ESPO,,
Schools Total,School Group 7 � Pupil Capacity 501-1800,MCC Schools,Supplies & Services,"Printing, Stationery and General Office Expenses",Book Purchases,,05/09/2014,10392958,0,9.50,R,The Chepstow Bookshop,,
Schools Total,School Group 7 � Pupil Capacity 501-1800,MCC Schools,Supplies & Services,"Printing, Stationery and General Office Expenses",Book Purchases,,26/09/2014,10395800,80029851,11.90,R,Education Umbrella Ltd,,
Schools Total,School Group 2 � Pupil Capacity 144-314,MCC Schools,Supplies & Services,"Printing, Stationery and General Office Expenses",Book Purchases,,16/09/2014,10393982,0,284.12,R,Abergavenny Bookshop,,
Schools Total,School Group 2 � Pupil Capacity 144-314,MCC Schools,Supplies & Services,"Printing, Stationery and General Office Expenses",Book Purchases,,23/09/2014,10395122,0,77.68,R,REDACTED DATA,,
Schools Total,School Group 2 � Pupil Capacity 144-314,MCC Schools,Supplies & Services,"Printing, Stationery and General Office Expenses",Book Purchases,,30/09/2014,10396575,0,75.00,R,Pearson,,
Schools Effectiveness Grant & Welsh In Education Grant,Schools Better Schools Fund,MCC Schools,Supplies & Services,"Printing, Stationery and General Office Expenses",Book Purchases,,12/09/2014,10393705,80029837,118.35,R,Oxford University Press,,
Schools Effectiveness Grant & Welsh In Education Grant,Schools Better Schools Fund,MCC Schools,Supplies & Services,"Printing, Stationery and General Office Expenses",Book Purchases,,23/09/2014,10394624,0,4.79,R,Peters Library Service Ltd,,
Community Led Delivery,Community Hubs,Enterprise,Supplies & Services,"Printing, Stationery and General Office Expenses",Book Purchases,,05/09/2014,10392104,0,236.95,R,Askews & Holts Library Services Ltd,,
Community Led Delivery,Community Hubs,Enterprise,Supplies & Services,"Printing, Stationery and General Office Expenses",Book Purchases,,05/09/2014,10392097,0,64.10,R,Askews & Holts Library Services Ltd,,
Community Led Delivery,Community Hubs,Enterprise,Supplies & Services,"Printing, Stationery and General Office Expenses",Book Purchases,,09/09/2014,10392686,0,474.60,R,Askews & Holts Library Services Ltd,,
Community Led Delivery,Community Hubs,Enterprise,Supplies & Services,"Printing, Stationery and General Office Expenses",Book Purchases,,12/09/2014,10392690,0,34.00,R,Three Impostors,,
Community Led Delivery,Community Hubs,Enterprise,Supplies & Services,"Printing, Stationery and General Office Expenses",Book Purchases,,16/09/2014,10393777,0,147.10,R,Askews & Holts Library Services Ltd,,
Community Led Delivery,Community Hubs,Enterprise,Supplies & Services,"Printing, Stationery and General Office Expenses",Book Purchases,,16/09/2014,10393972,10055905,341.28,R,Ulverscroft Large Print Books,,
Community Led Delivery,Community Hubs,Enterprise,Supplies & Services,"Printing, Stationery and General Office Expenses",Book Purchases,,16/09/2014,10393785,0,146.53,R,Askews & Holts Library Services Ltd,,
Community Led Delivery,Community Hubs,Enterprise,Supplies & Services,"Printing, Stationery and General Office Expenses",Book Purchases,,16/09/2014,10393787,0,123.20,R,Askews & Holts Library Services Ltd,,
Community Led Delivery,Community Hubs,Enterprise,Supplies & Services,"Printing, Stationery and General Office Expenses",Book Purchases,,30/09/2014,10397144,0,66.48,R,Askews & Holts Library Services Ltd,,
Schools Total,School Group 2 � Pupil Capacity 144-314,MCC Schools,Supplies & Services,Services,Professional And Specialist Fees,,30/09/2014,10396422,80030138,140.00,R,Beacon Services,,
Community Led Delivery,Asset Management,Enterprise,Supplies & Services,Services,Professional And Specialist Fees,,19/09/2014,10393910,0,300.00,R,CIBSE Publications,,
Finance,Revenues Department,Chief Executive's Unit,Supplies & Services,Services,Professional And Specialist Fees,,26/09/2014,10395955,0,"1,514.19",R,Loomis UK Ltd,,
Community Led Delivery,General Fund Housing,Enterprise,Supplies & Services,Services,Professional And Specialist Fees,,12/09/2014,10393544,0,3.90,R,Rossendales Collect,,
Community Led Delivery,General Fund Housing,Enterprise,Supplies & Services,Services,Professional And Specialist Fees,,16/09/2014,10394005,0,3.00,R,Rossendales Collect,,
Tourism Life & Culture,Cultural Services,Enterprise,Supplies & Services,Services,Professional And Specialist Fees,,26/09/2014,10395942,0,"1,040.00",R,Perth-Y-Pia Outdoor Centre,,
Democracy & Regulatory Services,Public Protection,Chief Executive's Unit,Supplies & Services,Services,Professional And Specialist Fees,,30/09/2014,10396744,10055270,153.75,R,Gradko International Ltd,,
Tourism Life & Culture,Tourism,Enterprise,Supplies & Services,Services,Professional And Specialist Fees,,30/09/2014,10396813,0,100.00,R,The Pocket Bakery,,
Democracy & Regulatory Services,Public Protection,Chief Executive's Unit,Supplies & Services,Services,Professional And Specialist Fees,Fully Recouped from Third Partu,09/09/2014,10392671,0,125.00,R,Elan Valley Hotel,,
Children Services,Children Services Teams,Social Care and Health,Supplies & Services,Services,Professional And Specialist Fees,,12/09/2014,10393358,0,48.50,R,CFCS Ltd (Child Focused Childrens Services Ltd),,
Children Services,Children Services Teams,Social Care and Health,Supplies & Services,Services,Professional And Specialist Fees,,12/09/2014,10389264,0,263.25,R,Okells with FrancisLaw LLP,,
Children Services,Children Services Other,Social Care and Health,Supplies & Services,Services,Professional And Specialist Fees,,12/09/2014,10393652,10059408,30.00,R,REDACTED PERSONAL DATA,,
Children Services,Children Services Other,Social Care and Health,Supplies & Services,Services,Professional And Specialist Fees,,12/09/2014,10393651,10059411,30.00,R,REDACTED PERSONAL DATA,,
Children Services,Children Services Other,Social Care and Health,Supplies & Services,Services,Professional And Specialist Fees,,16/09/2014,10393743,0,126.00,R,Child First Play Therapy,,
Children Services,Children Services Teams,Social Care and Health,Supplies & Services,Services,Professional And Specialist Fees,,16/09/2014,10393826,0,"1,760.40",R,Blue Turtle Consultants,,
Children Services,Children Services Teams,Social Care and Health,Supplies & Services,Services,Professional And Specialist Fees,,02/09/2014,10390940,0,95.00,R,Bellevue Group Practice,,
Adult Services,Day Centres,Social Care and Health,Supplies & Services,Services,Professional And Specialist Fees,,30/09/2014,10396842,10056852,360.00,R,REDACTED PERSONAL DATA,,
Adult Services,Management Team,Social Care and Health,Supplies & Services,Services,Professional And Specialist Fees,,19/09/2014,10390642,0,"9,754.40",R,Geldards LLP,,
Policy & Partnership,Policy And Partnerships,Chief Executive's Unit,Supplies & Services,Services,Professional And Specialist Fees,,12/09/2014,10393817,0,78.00,R,Gair,,
Schools Total,School Group 7 � Pupil Capacity 501-1800,MCC Schools,Supplies & Services,Services,Financial products and services general fees and charges,,12/09/2014,10393454,80029199,370.00,R,Kudos Printers,,
Finance,Revenues Department,Chief Executive's Unit,Supplies & Services,Services,Financial products and services general fees and charges,,05/09/2014,10392882,10047041,62.09,R,Swift Credit Services Ltd,,
Finance,Revenues Department,Chief Executive's Unit,Supplies & Services,Services,Financial products and services general fees and charges,,05/09/2014,10392883,10047041,78.76,R,Swift Credit Services Ltd,,
Finance,Revenues Department,Chief Executive's Unit,Supplies & Services,Services,Financial products and services general fees and charges,,26/09/2014,10395460,10047041,22.50,R,Swift Credit Services Ltd,,
Finance,Revenues Department,Chief Executive's Unit,Supplies & Services,Services,Financial products and services general fees and charges,,12/09/2014,10393413,10047041,7.50,R,Swift Credit Services Ltd,,
Finance,Revenues Department,Chief Executive's Unit,Supplies & Services,Services,Financial products and services general fees and charges,,12/09/2014,10393415,10047041,7.50,R,Swift Credit Services Ltd,,
Finance,Revenues Department,Chief Executive's Unit,Supplies & Services,Services,Financial products and services general fees and charges,,12/09/2014,10393422,10047041,7.50,R,Swift Credit Services Ltd,,
Schools Total,School Group 7 � Pupil Capacity 501-1800,MCC Schools,Supplies & Services,Communications and Computing,Telephone,,09/09/2014,10393308,0,68.97,R,British Telecommunications Plc,,
Schools Total,School Group 7 � Pupil Capacity 501-1800,MCC Schools,Supplies & Services,Communications and Computing,Telephone,,09/09/2014,10393311,0,68.97,R,British Telecommunications Plc,,
Schools Total,School Group 1 � Pupil Capacity 1-143,MCC Schools,Supplies & Services,Communications and Computing,Telephone,,05/09/2014,10392522,0,66.55,R,British Telecommunications Plc,,
Schools Total,School Group 2 � Pupil Capacity 144-314,MCC Schools,Supplies & Services,Communications and Computing,Telephone,,09/09/2014,10392681,0,22.50,R,British Telecommunications Plc,,
Schools Total,School Group 2 � Pupil Capacity 144-314,MCC Schools,Supplies & Services,Communications and Computing,Telephone,,26/09/2014,10395852,0,-28.49,R,British Telecommunications Plc,,
Schools Total,School Group 2 � Pupil Capacity 144-314,MCC Schools,Supplies & Services,Communications and Computing,Telephone,,30/09/2014,10395782,0,46.89,R,British Telecommunications Plc,,
Schools Total,SCHGRP3 � School Group 3 � Pupil Capacity 315-500,MCC Schools,Supplies & Services,Communications and Computing,Telephone,,05/09/2014,10384304,0,11.70,R,Contact Group,,
Schools Total,SCHGRP3 � School Group 3 � Pupil Capacity 315-500,MCC Schools,Supplies & Services,Communications and Computing,Telephone,,09/09/2014,10393024,0,1.20,R,Contact Group,,
Schools Total,SCHGRP3 � School Group 3 � Pupil Capacity 315-500,MCC Schools,Supplies & Services,Communications and Computing,Telephone,,16/09/2014,10394141,0,13.50,R,British Telecommunications Plc,,
Schools Total,SCHGRP3 � School Group 3 � Pupil Capacity 315-500,MCC Schools,Supplies & Services,Communications and Computing,Telephone,,16/09/2014,10394141,0,13.50,R,British Telecommunications Plc,,
Schools Total,SCHGRP3 � School Group 3 � Pupil Capacity 315-500,MCC Schools,Supplies & Services,Communications and Computing,Telephone,,16/09/2014,10394140,0,68.97,R,British Telecommunications Plc,,
Schools Total,School Group 2 � Pupil Capacity 144-314,MCC Schools,Supplies & Services,Communications and Computing,Telephone,,19/09/2014,10393857,0,68.95,R,British Telecommunications Plc,,
Adult Services,Day Centres,Social Care and Health,Supplies & Services,Communications and Computing,Telephone,,30/09/2014,10396843,10059279,13.50,R,British Telecommunications Plc,,
Democracy & Regulatory Services,Emergency Planning,Chief Executive's Unit,Supplies & Services,Communications and Computing,Telephone,,12/09/2014,10392875,10058895,110.00,R,SRS Public,,
Schools Total,Schools,MCC Schools,Supplies & Services,Communications and Computing,Telephone - Call Charges,,16/09/2014,10393937,80029979,77.46,R,British Telecommunications Plc,,
Schools Total,SCHGRP3 � School Group 3 � Pupil Capacity 315-500,MCC Schools,Supplies & Services,Communications and Computing,Telephone - Call Charges,,26/09/2014,10395134,0,37.89,R,British Telecommunications Plc,,
Community Led Delivery,Community Education,Enterprise,Supplies & Services,Communications and Computing,Telephone - Call Charges,,05/09/2014,10391945,0,0.50,R,British Telecommunications Plc,,
Community Led Delivery,Community Education,Enterprise,Supplies & Services,Communications and Computing,Telephone - Call Charges,,05/09/2014,10391945,0,37.89,R,British Telecommunications Plc,,
Youth,Inclusions,Children & Young People,Supplies & Services,Communications and Computing,Telephone - Call Charges,,23/09/2014,10394639,0,73.54,R,British Telecommunications Plc,,
Tourism Life & Culture,Tourism,Enterprise,Supplies & Services,Communications and Computing,Telephone - Call Charges,,02/09/2014,10392194,0,112.03,R,British Telecommunications Plc,,
Property & Facilities Management,Property Services & Facilities Management,Operations,Supplies & Services,Communications and Computing,Mobile Telephones,,05/09/2014,10392159,10056298,24.98,R,Orange Payment Processing Centre,,
Property & Facilities Management,Property Services & Facilities Management,Operations,Supplies & Services,Communications and Computing,Mobile Telephones,,23/09/2014,10395074,10056298,39.00,R,Orange Payment Processing Centre,,
Community Care,Contingency,Social Care and Health,Supplies & Services,Catering,Catering,,30/09/2014,10397484,0,97.50,R,Cwrt Bleddyn Hotel & Spa,,
Schools Total,School Group 7 � Pupil Capacity 501-1800,MCC Schools,Supplies & Services,Communications and Computing,IT Hardware,,09/09/2014,10392478,0,44.97,R,Uk Laser Suppliers,,
Schools Total,School Group 2 � Pupil Capacity 144-314,MCC Schools,Supplies & Services,Communications and Computing,IT Hardware,,26/09/2014,10386658,0,353.00,R,SRS Public,,
Schools Total,School Group 2 � Pupil Capacity 144-314,MCC Schools,Supplies & Services,Communications and Computing,IT Hardware,,12/09/2014,10393302,80029628,334.00,R,Computerworld (Wales) Ltd,,
Schools Total,School Group 7 � Pupil Capacity 501-1800,MCC Schools,Supplies & Services,Communications and Computing,IT Software,,12/09/2014,10393476,0,"1,495.00",R,SISRA Ltd,,
Schools Total,School Group 7 � Pupil Capacity 501-1800,MCC Schools,Supplies & Services,Communications and Computing,IT Software,,30/09/2014,10395655,0,450.00,R,Education City Ltd,,
Schools Effectiveness Grant & Welsh In Education Grant,Schools Better Schools Fund,MCC Schools,Supplies & Services,Communications and Computing,IT Software,,30/09/2014,10397440,80030391,255.00,R,Insight Direct (UK) Ltd,,
Schools Total,SCHGRP3 � School Group 3 � Pupil Capacity 315-500,MCC Schools,Supplies & Services,Communications and Computing,Computer Consumables,,02/09/2014,10391601,80029569,"3,220.00",R,Computerworld (Wales) Ltd,,
Property & Facilities Management,Property Services & Facilities Management,Operations,Supplies & Services,Communications and Computing,Computer Consumables,,05/09/2014,10392540,10058493,552.34,R,Uk Laser Suppliers,,
Property & Facilities Management,Property Services & Facilities Management,Operations,Supplies & Services,Communications and Computing,Computer Consumables,,19/09/2014,10393682,10059424,79.46,R,Uk Laser Suppliers,,
Community Led Delivery,Community Hubs,Enterprise,Supplies & Services,Communications and Computing,T.V. Licences,,12/09/2014,10393318,0,145.50,R,Tv Licensing,,
Schools Total,School Group 7 � Pupil Capacity 501-1800,MCC Schools,Supplies & Services,Communications and Computing,Licences,,09/09/2014,10391463,80029878,"1,743.60",R,SRS Public,,
Schools Total,School Group 2 � Pupil Capacity 144-314,MCC Schools,Supplies & Services,Communications and Computing,Licences,,12/09/2014,10393363,0,61.90,R,MPLC,,
Schools Total,School Group 2 � Pupil Capacity 144-314,MCC Schools,Supplies & Services,Communications and Computing,Licences,,30/09/2014,10396532,80030332,225.00,R,CCLI,,
Schools Total,SCHGRP3 � School Group 3 � Pupil Capacity 315-500,MCC Schools,Supplies & Services,Communications and Computing,Licences,,26/09/2014,10395406,0,309.00,R,CCLI,,
Schools Total,School Group 1 � Pupil Capacity 1-143,MCC Schools,Supplies & Services,Communications and Computing,Licences,,02/09/2014,10387800,80029712,495.00,R,Alfiesoft Ltd,,
Schools Total,School Group 2 � Pupil Capacity 144-314,MCC Schools,Supplies & Services,Communications and Computing,Licences,,19/09/2014,10394354,80028517,300.00,R,Alfiesoft Ltd,,
Resources,Service Level Agreement,Children & Young People,Supplies & Services,Communications and Computing,Copyright,,30/09/2014,10397335,0,"19,630.34",R,The Copyright Licensing Agency,,
Schools Total,School Group 2 � Pupil Capacity 144-314,MCC Schools,Supplies & Services,Communications and Computing,Courier Service,,26/09/2014,10395753,0,21.78,R,REDACTED DATA,,
Schools Total,School Group 7 � Pupil Capacity 501-1800,MCC Schools,Supplies & Services,Communications and Computing,Postages,,16/09/2014,10394247,80029861,109.00,R,Kane Mailing Systems Ltd,,
Schools Total,School Group 2 � Pupil Capacity 144-314,MCC Schools,Supplies & Services,Communications and Computing,Postages,,16/09/2014,10393606,0,9.01,R,REDACTED DATA,,
Schools Total,School Group 2 � Pupil Capacity 144-314,MCC Schools,Supplies & Services,Communications and Computing,Postages,,19/09/2014,10393595,0,56.05,R,REDACTED DATA,,
Property & Facilities Management,Property Services & Facilities Management,Operations,Supplies & Services,Communications and Computing,Postages,,30/09/2014,10396488,10059568,3.95,R,Connectix Cabling Systems,,
Finance,Revenues Department,Chief Executive's Unit,Supplies & Services,Communications and Computing,Postages,,26/09/2014,10395519,0,"1,521.58",R,Royal Mail,,
Finance,Revenues Department,Chief Executive's Unit,Supplies & Services,Communications and Computing,Postages,,26/09/2014,10395748,0,"1,037.40",R,Royal Mail,,
Community Led Delivery,Community Education,Enterprise,Supplies & Services,Communications and Computing,Postages,,30/09/2014,10396359,0,2.03,R,REDACTED DATA,,
Tourism Life & Culture,Leisure Services,Enterprise,Supplies & Services,Communications and Computing,Postages,,02/09/2014,10391441,10058791,5.76,R,Swimrite Supplies Ltd,,
Adult Services,Monnow Vale,Social Care and Health,Supplies & Services,Communications and Computing,Postages,,16/09/2014,10393643,10059386,15.00,R,Bath Potters Supplies,,
Democracy & Regulatory Services,Health & Safety,Chief Executive's Unit,Supplies & Services,Communications and Computing,Postages,,23/09/2014,10395054,10058612,7.50,R,Cardiac Science UK,,
Democracy & Regulatory Services,Democratic Services,Chief Executive's Unit,Supplies & Services,Communications and Computing,Postages,,19/09/2014,10394407,0,684.90,R,Mediascene Ltd,,
Democracy & Regulatory Services,Democratic Services,Chief Executive's Unit,Supplies & Services,Communications and Computing,Postages,,30/09/2014,10396596,0,122.37,R,Royal Mail,,
Tourism Life & Culture,Leisure Services,Enterprise,Supplies & Services,"Equipment, Furniture and Materials",Marketing General,,02/09/2014,10392070,0,"1,000.00",R,Tapiochre Ltd,,
Schools Total,SCHGRP3 � School Group 3 � Pupil Capacity 315-500,MCC Schools,Supplies & Services,"Equipment, Furniture and Materials",Display Materials,,30/09/2014,10396877,80028939,124.58,R,West Mercia Suppliers,,
Highways,Highways,Operations,Supplies & Services,"Equipment, Furniture and Materials",Display Equipment,,26/09/2014,10396413,808994,"1,203.50",R,Griffiths Signs & Equipment Co.,,
Democracy & Regulatory Services,Democratic Services,Chief Executive's Unit,Supplies & Services,"Equipment, Furniture and Materials",Civic Events & Activities,,23/09/2014,10394540,0,30.00,R,Vale Of Glamorgan Council,,
Schools Total,School Group 7 � Pupil Capacity 501-1800,MCC Schools,Supplies & Services,"Equipment, Furniture and Materials",Advertising,,30/09/2014,10396949,0,139.50,R,Monmouthshire Beacon Co Ltd,,
Standards,Early Years,Children & Young People,Supplies & Services,"Equipment, Furniture and Materials",Advertising,,05/09/2014,10392553,10058738,65.00,R,Abergavenny Baby & Toddle how,,
Tourism Life & Culture,Cultural Services,Enterprise,Supplies & Services,"Equipment, Furniture and Materials",Advertising,,26/09/2014,10396202,10059616,40.00,R,Monnow Voice Ltd,,
Highways,Highways,Operations,Supplies & Services,"Equipment, Furniture and Materials",Advertising,,23/09/2014,10395006,10059475,96.69,R,Abergavenny Chronicle Co. Ltd,,
Highways,Highways,Operations,Supplies & Services,"Equipment, Furniture and Materials",Advertising,,23/09/2014,10395008,10059461,773.50,R,Abergavenny Chronicle Co. Ltd,,
"Registrars Births, Deaths & Marriages","Registrations B, D and M",Operations,Supplies & Services,"Equipment, Furniture and Materials",Advertising,,30/09/2014,10396770,10059658,75.00,R,Abergavenny Chronicle Co. Ltd,,
Community Led Delivery,General Fund Housing,Enterprise,Supplies & Services,Services,Homelessness Bed & Breakfast Accomodation,,30/09/2014,10396898,0,"1,400.00",R,Newport Hotel,,
Schools Total,School Group 2 � Pupil Capacity 144-314,MCC Schools,Supplies & Services,Grants and Subscriptions,Subscriptions,,30/09/2014,10396423,80030224,261.00,R,First News,,
Schools Total,SCHGRP3 � School Group 3 � Pupil Capacity 315-500,MCC Schools,Supplies & Services,Grants and Subscriptions,Subscriptions,,26/09/2014,10395552,0,600.00,R,County in the Community,,
Tourism Life & Culture,Tourism,Enterprise,Supplies & Services,Grants and Subscriptions,Subscriptions,,30/09/2014,10397407,10059829,170.00,R,The Chartered Institute Marketing,,
Standards,Early Years,Children & Young People,Supplies & Services,Grants and Subscriptions,Grants Payable,,05/09/2014,10392556,10059284,"5,794.00",R,Aneurin Bevan Local Health Board,,
Standards,Early Years,Children & Young People,Supplies & Services,Grants and Subscriptions,Grants Payable,,26/09/2014,10395483,10059746,386.96,R,Bluebelle Nursery,,
Standards,Early Years,Children & Young People,Supplies & Services,Grants and Subscriptions,Grants Payable,,26/09/2014,10395486,10059749,"1,135.80",R,Shirenewton Playgroup,,
Standards,Early Years,Children & Young People,Supplies & Services,Grants and Subscriptions,Grants Payable,,23/09/2014,10395125,10056394,155.15,R,REDACTED PERSONAL DATA,,
Standards,Inclusions,Children & Young People,Supplies & Services,Grants and Subscriptions,Grants Payable,,30/09/2014,10395491,10059758,"1,485.00",R,Deri View Dragons,,
Fleet Management & Passenger Transport,Home to School Transport Dept,Operations,Supplies & Services,Grants and Subscriptions,Grants Payable,,12/09/2014,10393533,0,"5,328.37",R,OTED Transport,,
Fleet Management & Passenger Transport,Home to School Transport Dept,Operations,Supplies & Services,Grants and Subscriptions,Grants Payable,,12/09/2014,10393527,0,"2,678.39",R,Phoenix Community Transport,,
Policy & Partnership,Policy And Partnerships,Chief Executive's Unit,Supplies & Services,Grants and Subscriptions,Grants Payable,,12/09/2014,10393321,0,"49,320.97",R,Aneurin Bevan Local Health Board,,
Fleet Management & Passenger Transport,Transport Department,Operations,Supplies & Services,"Clothes, Uniform and Laundry",Clothing And Uniforms,,19/09/2014,10394458,10058995,161.93,R,P K Safety,,
Schools Total,SCHGRP3 � School Group 3 � Pupil Capacity 315-500,MCC Schools,Supplies & Services,"Clothes, Uniform and Laundry",Clothing And Uniforms,,30/09/2014,10396889,80028936,96.30,R,ESPO,,
Tourism Life & Culture,Leisure Services,Enterprise,Supplies & Services,"Clothes, Uniform and Laundry",Clothing And Uniforms,,30/09/2014,10397333,0,100.70,R,PSM Sportswear Ltd,,
Commercial & People Development,Business Growth & Enterprise,Enterprise,Supplies & Services,"Clothes, Uniform and Laundry",Clothing And Uniforms,,30/09/2014,10397013,10059674,197.08,R,Kudos Printers,,
Schools Total,School Group 2 � Pupil Capacity 144-314,MCC Schools,Supplies & Services,Services,Training Charges,,26/09/2014,10395492,10059686,320.00,R,The Literacy Shed,,
Tourism Life & Culture,Leisure Services,Enterprise,Supplies & Services,Services,Training Charges,,26/09/2014,10396011,10059535,155.00,R,St John Wales Training Co. Ltd,,
Waste & Street Scene,Waste and Street Services,Operations,Supplies & Services,Services,Training Charges,All this expenditure is recovered from the client in full (plus the centres costs) to cover charges for the provision of training and assessment.,26/09/2014,10395472,10059515,168.00,R,City & Guilds,,
Waste & Street Scene,Waste and Street Services,Operations,Supplies & Services,Services,Training Charges,All this expenditure is recovered from the client in full (plus the centres costs) to cover charges for the provision of training and assessment.,30/09/2014,10397424,10058339,332.00,R,Lantra,,
Waste & Street Scene,Waste and Street Services,Operations,Supplies & Services,Services,Training Charges,All this expenditure is recovered from the client in full (plus the centres costs) to cover charges for the provision of training and assessment.,30/09/2014,10397424,10057242,94.00,R,Lantra,,
Waste & Street Scene,Waste and Street Services,Operations,Supplies & Services,Services,Training Charges,All this expenditure is recovered from the client in full (plus the centres costs) to cover charges for the provision of training and assessment.,30/09/2014,10397424,10054893,47.00,R,Lantra,,
Waste & Street Scene,Waste and Street Services,Operations,Supplies & Services,Services,Training Charges,All this expenditure is recovered from the client in full (plus the centres costs) to cover charges for the provision of training and assessment.,30/09/2014,10397424,10058070,77.00,R,Lantra,,
Corporate (COL),Insurance,Corporate Costs & Levies,Supplies & Services,Miscellaneous Expenses,Insurance Settlement Expenditure(Direct),,09/09/2014,10392584,0,-825.50,R,Beachcroft LLP,,
Children Services,Children Services Teams,Social Care and Health,Supplies & Services,Services,Direct Work with Young People,,12/09/2014,10393618,0,7.00,R,REDACTED DATA,,
Children Services,Children Services Teams,Social Care and Health,Supplies & Services,Services,Assistance To Clients,,12/09/2014,10393618,0,69.00,R,REDACTED DATA,,
Schools Total,School Group 7 � Pupil Capacity 501-1800,MCC Schools,Supplies & Services,Services,Residential Trips,,09/09/2014,10392318,80029716,258.20,R,Nisbets,,
Schools Total,SCHGRP3 � School Group 3 � Pupil Capacity 315-500,MCC Schools,Supplies & Services,Services,Residential Trips,,09/09/2014,10393019,0,132.00,R,Gwent Wildlife Trust,,
Children Services,Children Services Teams,Social Care and Health,Third Party Payments,Third Party,Third party payments NOT relating to goods or services,,12/09/2014,10393618,0,541.62,R,REDACTED DATA,,
Commissioning,Commissioning Strategy,Social Care and Health,Third Party Payments,Third Party,Third party payments NOT relating to goods or services,,05/09/2014,10390583,0,"8,392.08",R,Drive Ltd,,
Commissioning,Commissioning Strategy,Social Care and Health,Third Party Payments,Third Party,Third party payments NOT relating to goods or services,,05/09/2014,10390586,0,"8,392.08",R,Drive Ltd,,
Community Care,Community Care Team,Social Care and Health,Third Party Payments,Third Party,Third party payments NOT relating to goods or services,,19/09/2014,10394734,0,"1,221.90",R,Milkwood Care Ltd T/A Ganarew House,,
Community Care,Community Learning Disability Team,Social Care and Health,Third Party Payments,Third Party,Third party payments NOT relating to goods or services,,05/09/2014,10393136,0,392.00,R,Chepstow & District Mencap Soc Ltd,,
Community Care,Community Learning Disability Team,Social Care and Health,Third Party Payments,Third Party,Third party payments NOT relating to goods or services,,16/09/2014,10394213,0,716.00,R,Chepstow & District Mencap Soc Ltd,,
Community Care,Community Learning Disability Team,Social Care and Health,Third Party Payments,Third Party,Third party payments NOT relating to goods or services,,16/09/2014,10394230,0,514.40,R,Chepstow & District Mencap Soc Ltd,,
Community Care,Community Care Team,Social Care and Health,Third Party Payments,Third Party,Third party payments NOT relating to goods or services,,19/09/2014,10394723,0,338.86,R,Plasgeller  Care Home Ltd,,
Waste & Street Scene,Waste and Street Services,Operations,Third Party Payments,Third Party,Maintenance Contracts,,09/09/2014,10393357,0,295.00,R,Brecongate Projects,,
Highways,Highways,Operations,Third Party Payments,Third Party,Maintenance Contracts,,02/09/2014,10391867,0,365.78,R,SSE Contracting Limited,,
Highways,Highways,Operations,Third Party Payments,Third Party,Maintenance Contracts,,02/09/2014,10391871,0,"17,388.20",R,SSE Contracting Limited,,
Highways,Highways,Operations,Third Party Payments,Third Party,Maintenance Contracts,,02/09/2014,10391873,0,"17,388.20",R,SSE Contracting Limited,,
Highways,Highways,Operations,Third Party Payments,Third Party,Maintenance Contracts,,02/09/2014,10391896,0,337.09,R,SSE Contracting Limited,,
Highways,Highways,Operations,Third Party Payments,Third Party,Maintenance Contracts,,02/09/2014,10391898,0,337.09,R,SSE Contracting Limited,,
Highways,Highways,Operations,Third Party Payments,Third Party,Maintenance Contracts,,02/09/2014,10391909,0,438.17,R,SSE Contracting Limited,,
Highways,Highways,Operations,Third Party Payments,Third Party,Maintenance Contracts,,02/09/2014,10391892,0,337.09,R,SSE Contracting Limited,,
Highways,Highways,Operations,Third Party Payments,Third Party,Maintenance Contracts,,02/09/2014,10391876,0,453.76,R,SSE Contracting Limited,,
Highways,Highways,Operations,Third Party Payments,Third Party,Maintenance Contracts,,30/09/2014,10397003,0,337.09,R,SSE Contracting Limited,,
Highways,Highways,Operations,Third Party Payments,Third Party,Maintenance Contracts,,30/09/2014,10397012,0,337.09,R,SSE Contracting Limited,,
Highways,Highways,Operations,Third Party Payments,Third Party,Maintenance Contracts,,30/09/2014,10397006,0,240.72,R,SSE Contracting Limited,,
Highways,Highways,Operations,Third Party Payments,Third Party,Maintenance Contracts,,30/09/2014,10397124,0,453.76,R,SSE Contracting Limited,,
Community Led Delivery,General Fund Housing,Enterprise,Third Party Payments,Third Party,General Contracts,,26/09/2014,10396225,0,"29,579.41",R,Mark Group Ltd,,
Community Led Delivery,General Fund Housing,Enterprise,Third Party Payments,Third Party,General Contracts,,16/09/2014,10392519,0,418.33,R,Charter Housing Association,,
Waste & Street Scene,Waste and Street Services,Operations,Third Party Payments,Third Party,General Contracts,,12/09/2014,10393439,10056143,754.56,R,Homemakers Community Recycling,,
Waste & Street Scene,Waste and Street Services,Operations,Third Party Payments,Third Party,General Contracts,,26/09/2014,10393299,10056140,"163,678.16",R,Dragon Waste Ltd,,
Waste & Street Scene,Waste and Street Services,Operations,Third Party Payments,Third Party,General Contracts,,26/09/2014,10394101,10056142,"44,388.90",R,Viridor Waste Management Ltd,,
Highways,Highways,Operations,Third Party Payments,Third Party,General Contracts,,16/09/2014,10394089,808239,"4,840.00",R,Cardiff City Council,,
Highways,Highways,Operations,Third Party Payments,Third Party,General Contracts,,16/09/2014,10394091,808239,"4,461.55",R,Cardiff City Council,,
Policy & Partnership,Policy And Partnerships,Chief Executive's Unit,Third Party Payments,Third Party,General Contracts,,23/09/2014,10393592,0,500.00,R,Llangybi Fawr Community Council,,
Children Services,Children Services Teams,Social Care and Health,Third Party Payments,Third Party,Conveyance Of Clients,,16/09/2014,10392466,0,-8.00,R,REDACTED DATA,,
Community Care,Community Care Team,Social Care and Health,Third Party Payments,Third Party,Conveyance Of Clients,,26/09/2014,10396247,0,368.00,R,ABC Taxis,,
Community Care,Community Learning Disability Team,Social Care and Health,Third Party Payments,Third Party,Conveyance Of Clients,,02/09/2014,10392421,0,60.00,R,Sheila's Cars,,
Community Care,Community Care Team,Social Care and Health,Third Party Payments,Third Party,Night Sitting Service.,,19/09/2014,10394704,0,278.20,R,Shaw Healthcare (Community Services) Ltd,,
Community Care,Community Care Team,Social Care and Health,Third Party Payments,Third Party,Personal Care.,,19/09/2014,10394377,0,"1,016.58",R,Abicare Services Ltd,,
Community Care,Community Care Team,Social Care and Health,Third Party Payments,Third Party,Personal Care.,,19/09/2014,10394879,0,785.40,R,Prompt Care Ltd (T/A Sevacare),,
Community Care,Community Care Team,Social Care and Health,Third Party Payments,Third Party,Personal Care.,,19/09/2014,10394852,0,76.50,R,Prompt Care Ltd (T/A Sevacare),,
Community Care,Community Care Team,Social Care and Health,Third Party Payments,Third Party,Personal Care.,,19/09/2014,10394824,0,652.80,R,Prompt Care Ltd (T/A Sevacare),,
Community Care,Community Care Team,Social Care and Health,Third Party Payments,Third Party,Personal Care.,,19/09/2014,10394825,0,219.30,R,Prompt Care Ltd (T/A Sevacare),,
Community Care,Community Care Team,Social Care and Health,Third Party Payments,Third Party,Personal Care.,,02/09/2014,10392123,0,663.00,R,Prompt Care Ltd (T/A Sevacare),,
Community Care,Community Care Team,Social Care and Health,Third Party Payments,Third Party,Personal Care.,,02/09/2014,10392183,0,"2,030.60",R,Prompt Care Ltd (T/A Sevacare),,
Community Care,Community Care Team,Social Care and Health,Third Party Payments,Third Party,Personal Care.,,12/09/2014,307152,0,637.20,R,REDACTED PERSONAL DATA,,
Community Care,Community Care Team,Social Care and Health,Third Party Payments,Third Party,Personal Care.,,12/09/2014,307152,0,663.68,R,REDACTED PERSONAL DATA,,
Community Care,Community Care Team,Social Care and Health,Third Party Payments,Third Party,Personal Care.,,12/09/2014,307152,0,337.00,R,REDACTED PERSONAL DATA,,
Community Care,Community Care Team,Social Care and Health,Third Party Payments,Third Party,Personal Care.,,12/09/2014,307152,0,"1,944.00",R,REDACTED PERSONAL DATA,,
Community Care,Community Care Team,Social Care and Health,Third Party Payments,Third Party,Personal Care.,,26/09/2014,10395651,0,181.77,R,Allied Healthcare Group,,
Community Care,Community Care Team,Social Care and Health,Third Party Payments,Third Party,Personal Care.,,26/09/2014,10395688,0,139.44,R,Allied Healthcare Group,,
Community Care,Community Care Team,Social Care and Health,Third Party Payments,Third Party,Personal Care.,,26/09/2014,10395367,0,734.55,R,Allied Healthcare Group,,
Community Care,Community Care Team,Social Care and Health,Third Party Payments,Third Party,Personal Care.,,26/09/2014,10395693,0,224.10,R,Allied Healthcare Group,,
Community Care,Community Care Team,Social Care and Health,Third Party Payments,Third Party,Personal Care.,,26/09/2014,10395361,0,942.08,R,Allied Healthcare Group,,
Community Care,Community Care Team,Social Care and Health,Third Party Payments,Third Party,Personal Care.,,23/09/2014,10395255,0,826.68,R,Q Care Ltd,,
Community Care,Community Care Team,Social Care and Health,Third Party Payments,Third Party,Personal Care.,,23/09/2014,10395259,0,109.44,R,Q Care Ltd,,
Community Care,Community Care Team,Social Care and Health,Third Party Payments,Third Party,Personal Care.,,23/09/2014,10395172,0,344.08,R,Q Care Ltd,,
Community Care,Community Care Team,Social Care and Health,Third Party Payments,Third Party,Personal Care.,,23/09/2014,10395174,0,351.69,R,Q Care Ltd,,
Community Care,Community Care Team,Social Care and Health,Third Party Payments,Third Party,Personal Care.,,23/09/2014,10395160,0,392.70,R,Prompt Care Ltd (T/A Sevacare),,
Community Care,Community Care Team,Social Care and Health,Third Party Payments,Third Party,Personal Care.,,23/09/2014,10395248,0,217.58,R,Q Care Ltd,,
Community Care,Community Care Team,Social Care and Health,Third Party Payments,Third Party,Personal Care.,,23/09/2014,10395009,0,267.75,R,Prompt Care Ltd (T/A Sevacare),,
Community Care,Community Care Team,Social Care and Health,Third Party Payments,Third Party,Personal Care.,,23/09/2014,10395181,0,417.45,R,Q Care Ltd,,
Community Care,Community Care Team,Social Care and Health,Third Party Payments,Third Party,Personal Care.,,19/09/2014,10394702,0,"5,583.00",R,Encompass Care,,
Community Care,Community Care Team,Social Care and Health,Third Party Payments,Third Party,Personal Care.,,05/09/2014,10392997,0,641.03,R,Radis Community Care,,
Community Care,Community Care Team,Social Care and Health,Third Party Payments,Third Party,Personal Care.,,05/09/2014,10392713,0,90.65,R,Radis Community Care,,
Community Care,Community Care Team,Social Care and Health,Third Party Payments,Third Party,Personal Care.,,09/09/2014,10393225,0,110.88,R,Autumn Leaves Homecare,,
Community Care,Community Care Team,Social Care and Health,Third Party Payments,Third Party,Personal Care.,,02/09/2014,10392119,0,52.00,R,Prompt Care Ltd (T/A Sevacare),,
Community Care,Community Care Team,Social Care and Health,Third Party Payments,Third Party,Personal Care.,,09/09/2014,10393234,0,68.64,R,Autumn Leaves Homecare,,
Community Care,Community Care Team,Social Care and Health,Third Party Payments,Third Party,Personal Care.,,02/09/2014,10392218,0,126.72,R,Autumn Leaves Homecare,,
Community Care,Community Care Team,Social Care and Health,Third Party Payments,Third Party,Personal Care.,,02/09/2014,10392231,0,250.20,R,Autumn Leaves Homecare,,
Community Care,Community Care Team,Social Care and Health,Third Party Payments,Third Party,Personal Care.,,09/09/2014,10393242,0,73.92,R,Autumn Leaves Homecare,,
Community Care,Community Care Team,Social Care and Health,Third Party Payments,Third Party,Personal Care.,,09/09/2014,10393245,0,242.88,R,Autumn Leaves Homecare,,
Community Care,Community Care Team,Social Care and Health,Third Party Payments,Third Party,Personal Care.,,12/09/2014,307152,0,198.48,R,REDACTED PERSONAL DATA,,
Community Care,Community Care Team,Social Care and Health,Third Party Payments,Third Party,Personal Care.,,26/09/2014,10396355,0,42.00,R,JSJ Supported Living Ltd,,
Community Care,Community Care Team,Social Care and Health,Third Party Payments,Third Party,Personal Care.,,26/09/2014,10396337,0,54.40,R,Oaklands Healthcare Europe Ltd,,
Community Care,Community Care Team,Social Care and Health,Third Party Payments,Third Party,Personal Care.,,26/09/2014,10396366,0,"2,968.00",R,JSJ Supported Living Ltd,,
Community Care,Community Care Team,Social Care and Health,Third Party Payments,Third Party,Personal Care.,,16/09/2014,10394270,0,"1,658.80",R,Cornpoppy Homecare Agency,,
Community Care,Community Care Team,Social Care and Health,Third Party Payments,Third Party,Personal Care.,,16/09/2014,10394286,0,817.82,R,Abicare Services Ltd,,
Community Care,Community Care Team,Social Care and Health,Third Party Payments,Third Party,Personal Care.,,23/09/2014,10395280,0,955.83,R,REDACTED PERSONAL DATA,,
Community Care,Community Care Team,Social Care and Health,Third Party Payments,Third Party,Personal Care.,,19/09/2014,10394383,0,440.12,R,Abicare Services Ltd,,
Community Care,Community Care Team,Social Care and Health,Third Party Payments,Third Party,Personal Care.,,05/09/2014,10393085,0,"1,848.00",R,Lougher Home Care Ltd,,
Community Care,Community Care Team,Social Care and Health,Third Party Payments,Third Party,Personal Care.,,05/09/2014,10393010,0,594.15,R,Radis Community Care,,
Community Care,Community Care Team,Social Care and Health,Third Party Payments,Third Party,Personal Care.,,05/09/2014,10393011,0,453.90,R,Radis Community Care,,
Community Care,Community Care Team,Social Care and Health,Third Party Payments,Third Party,Personal Care.,,05/09/2014,10392706,0,"1,048.05",R,Radis Community Care,,
Community Care,Community Care Team,Social Care and Health,Third Party Payments,Third Party,Personal Care.,,05/09/2014,10392970,0,95.63,R,Radis Community Care,,
Community Care,Community Care Team,Social Care and Health,Third Party Payments,Third Party,Personal Care.,,05/09/2014,10392655,0,124.95,R,Radis Community Care,,
Community Care,Community Care Team,Social Care and Health,Third Party Payments,Third Party,Personal Care.,,05/09/2014,10392656,0,471.75,R,Radis Community Care,,
Community Care,Community Care Team,Social Care and Health,Third Party Payments,Third Party,Personal Care.,,05/09/2014,10393055,0,195.00,R,Lougher Home Care Ltd,,
Community Care,Community Care Team,Social Care and Health,Third Party Payments,Third Party,Personal Care.,,16/09/2014,307162,0,619.92,R,REDACTED PERSONAL DATA,,
Community Care,Community Care Team,Social Care and Health,Third Party Payments,Third Party,Personal Care.,,16/09/2014,307162,0,"1,439.12",R,REDACTED PERSONAL DATA,,
Community Care,Community Care Team,Social Care and Health,Third Party Payments,Third Party,Personal Care.,,12/09/2014,307152,0,312.00,R,REDACTED PERSONAL DATA,,
Community Care,Community Care Team,Social Care and Health,Third Party Payments,Third Party,Personal Care.,,12/09/2014,307152,0,"1,367.52",R,REDACTED PERSONAL DATA,,
Community Care,Community Care Team,Social Care and Health,Third Party Payments,Third Party,Personal Care.,,12/09/2014,307152,0,500.00,R,REDACTED PERSONAL DATA,,
Community Care,Community Care Team,Social Care and Health,Third Party Payments,Third Party,Personal Care.,,12/09/2014,307152,0,605.72,R,REDACTED PERSONAL DATA,,
Community Care,Community Care Team,Social Care and Health,Third Party Payments,Third Party,Personal Care.,,26/09/2014,10395328,0,288.42,R,Q Care Ltd,,
Community Care,Community Care Team,Social Care and Health,Third Party Payments,Third Party,Personal Care.,,26/09/2014,10395332,0,462.99,R,Q Care Ltd,,
Community Care,Community Care Team,Social Care and Health,Third Party Payments,Third Party,Personal Care.,,26/09/2014,10395649,0,159.36,R,Allied Healthcare Group,,
Community Care,Community Care Team,Social Care and Health,Third Party Payments,Third Party,Personal Care.,,26/09/2014,10395654,0,393.42,R,Allied Healthcare Group,,
Community Care,Community Care Team,Social Care and Health,Third Party Payments,Third Party,Personal Care.,,26/09/2014,10395342,0,351.67,R,Q Care Ltd,,
Community Care,Community Care Team,Social Care and Health,Third Party Payments,Third Party,Personal Care.,,26/09/2014,10395319,0,516.12,R,Q Care Ltd,,
Community Care,Community Care Team,Social Care and Health,Third Party Payments,Third Party,Personal Care.,,26/09/2014,10395690,0,195.93,R,Allied Healthcare Group,,
Community Care,Community Care Team,Social Care and Health,Third Party Payments,Third Party,Personal Care.,,26/09/2014,10395634,0,"1,052.93",R,Allied Healthcare Group,,
Community Care,Community Care Team,Social Care and Health,Third Party Payments,Third Party,Personal Care.,,26/09/2014,10395279,0,88.55,R,Q Care Ltd,,
Community Care,Community Care Team,Social Care and Health,Third Party Payments,Third Party,Personal Care.,,26/09/2014,10395311,0,953.80,R,Q Care Ltd,,
Community Care,Community Care Team,Social Care and Health,Third Party Payments,Third Party,Personal Care.,,26/09/2014,10395281,0,"2,399.06",R,Q Care Ltd,,
Community Care,Community Care Team,Social Care and Health,Third Party Payments,Third Party,Personal Care.,,26/09/2014,10395288,0,202.40,R,Q Care Ltd,,
Community Care,Community Care Team,Social Care and Health,Third Party Payments,Third Party,Personal Care.,,26/09/2014,10395590,0,32.37,R,Allied Healthcare Group,,
Community Care,Community Care Team,Social Care and Health,Third Party Payments,Third Party,Personal Care.,,23/09/2014,10395260,0,743.83,R,Q Care Ltd,,
Community Care,Community Care Team,Social Care and Health,Third Party Payments,Third Party,Personal Care.,,30/09/2014,10396808,0,583.32,R,REDACTED PERSONAL DATA,,
Community Care,Community Learning Disability Team,Social Care and Health,Third Party Payments,Third Party,Personal Care.,,16/09/2014,307158,0,332.64,R,REDACTED PERSONAL DATA,,
Community Care,Community Learning Disability Team,Social Care and Health,Third Party Payments,Third Party,Personal Care.,,16/09/2014,307158,0,573.65,R,REDACTED PERSONAL DATA,,
Community Care,Community Learning Disability Team,Social Care and Health,Third Party Payments,Third Party,Personal Care.,,05/09/2014,10393153,0,"3,266.68",R,St Helen's Domicilary Care Agency,,
Community Care,Community Learning Disability Team,Social Care and Health,Third Party Payments,Third Party,Personal Care.,,05/09/2014,10393154,0,"4,648.00",R,St Helen's Domicilary Care Agency,,
Community Care,Community Learning Disability Team,Social Care and Health,Third Party Payments,Third Party,Personal Care.,,05/09/2014,10393106,0,199.40,R,Nas Services Ltd,,
Community Care,Community Learning Disability Team,Social Care and Health,Third Party Payments,Third Party,Personal Care.,,02/09/2014,307107,0,193.00,R,REDACTED PERSONAL DATA,,
Community Care,Community Learning Disability Team,Social Care and Health,Third Party Payments,Third Party,Personal Care.,,23/09/2014,307179,0,401.00,R,REDACTED PERSONAL DATA,,
Community Care,Community Learning Disability Team,Social Care and Health,Third Party Payments,Third Party,Personal Care.,,23/09/2014,307179,0,516.00,R,REDACTED PERSONAL DATA,,
Community Care,Community Learning Disability Team,Social Care and Health,Third Party Payments,Third Party,Personal Care.,,23/09/2014,307179,0,44.80,R,REDACTED PERSONAL DATA,,
Community Care,Community Learning Disability Team,Social Care and Health,Third Party Payments,Third Party,Personal Care.,,23/09/2014,307179,0,44.80,R,REDACTED PERSONAL DATA,,
Community Care,Community Learning Disability Team,Social Care and Health,Third Party Payments,Third Party,Personal Care.,,02/09/2014,10392399,0,"7,088.90",R,Newport City Council,,
Community Care,Community Learning Disability Team,Social Care and Health,Third Party Payments,Third Party,Personal Care.,,30/09/2014,307203,0,44.80,R,REDACTED PERSONAL DATA,,
Community Care,Community Learning Disability Team,Social Care and Health,Third Party Payments,Third Party,Personal Care.,,30/09/2014,307203,0,51.20,R,REDACTED PERSONAL DATA,,
Community Care,Community Learning Disability Team,Social Care and Health,Third Party Payments,Third Party,Personal Care.,,12/09/2014,307152,0,247.04,R,REDACTED PERSONAL DATA,,
Community Care,Community Learning Disability Team,Social Care and Health,Third Party Payments,Third Party,Personal Care.,,12/09/2014,307152,0,325.00,R,REDACTED PERSONAL DATA,,
Community Care,Community Learning Disability Team,Social Care and Health,Third Party Payments,Third Party,Personal Care.,,12/09/2014,307152,0,879.88,R,REDACTED PERSONAL DATA,,
Community Care,Community Learning Disability Team,Social Care and Health,Third Party Payments,Third Party,Personal Care.,,12/09/2014,307152,0,180.00,R,The Friendly Trust,,
Community Care,Community Learning Disability Team,Social Care and Health,Third Party Payments,Third Party,Personal Care.,,26/09/2014,10396369,0,144.00,R,The Barton Hill Centre,,
Community Care,Community Learning Disability Team,Social Care and Health,Third Party Payments,Third Party,Personal Care.,,09/09/2014,307134,0,246.00,R,REDACTED PERSONAL DATA,,
Community Care,Community Learning Disability Team,Social Care and Health,Third Party Payments,Third Party,Personal Care.,,09/09/2014,307134,0,412.00,R,REDACTED PERSONAL DATA,,
Community Care,Community Learning Disability Team,Social Care and Health,Third Party Payments,Third Party,Personal Care.,,09/09/2014,307134,0,995.40,R,REDACTED PERSONAL DATA,,
Community Care,Community Care Team,Social Care and Health,Third Party Payments,Third Party,Personal Care.,,19/09/2014,10394718,0,41.73,R,Shaw Healthcare (Community Services) Ltd,,
Community Care,Community Care Team,Social Care and Health,Third Party Payments,Third Party,Personal Care.,,19/09/2014,10394924,0,693.60,R,Prompt Care Ltd (T/A Sevacare),,
Community Care,Community Care Team,Social Care and Health,Third Party Payments,Third Party,Personal Care.,,05/09/2014,10393089,0,"1,293.00",R,Lougher Home Care Ltd,,
Community Care,Community Care Team,Social Care and Health,Third Party Payments,Third Party,Personal Care.,,05/09/2014,10393071,0,"1,452.20",R,Lougher Home Care Ltd,,
Community Care,Community Care Team,Social Care and Health,Third Party Payments,Third Party,Personal Care.,,05/09/2014,10393112,0,660.36,R,Nas Services Ltd,,
Community Care,Community Care Team,Social Care and Health,Third Party Payments,Third Party,Personal Care.,,23/09/2014,307179,0,297.00,R,REDACTED PERSONAL DATA,,
Community Care,Community Care Team,Social Care and Health,Third Party Payments,Third Party,Personal Care.,,23/09/2014,307179,0,117.71,R,REDACTED PERSONAL DATA,,
Community Care,Community Care Team,Social Care and Health,Third Party Payments,Third Party,Personal Care.,,02/09/2014,10392235,0,400.00,R,Penpergwm House Ltd,,
Community Care,Community Care Team,Social Care and Health,Third Party Payments,Third Party,Personal Care.,,30/09/2014,307203,0,246.00,R,REDACTED PERSONAL DATA,,
Community Care,Community Care Team,Social Care and Health,Third Party Payments,Third Party,Personal Care.,,02/09/2014,10392176,0,693.60,R,Prompt Care Ltd (T/A Sevacare),,
Community Care,Community Care Team,Social Care and Health,Third Party Payments,Third Party,Personal Care.,,02/09/2014,10392207,0,262.65,R,Prompt Care Ltd (T/A Sevacare),,
Community Care,Community Care Team,Social Care and Health,Third Party Payments,Third Party,Personal Care.,,26/09/2014,10396231,0,770.42,R,Nas Services Ltd,,
Community Care,Community Care Team,Social Care and Health,Third Party Payments,Third Party,Personal Care.,,26/09/2014,10395629,0,338.64,R,Allied Healthcare Group,,
Community Care,Community Care Team,Social Care and Health,Third Party Payments,Third Party,Personal Care.,,26/09/2014,10396252,0,524.18,R,Penpergwm House Ltd,,
Community Care,Community Care Team,Social Care and Health,Third Party Payments,Third Party,Personal Care.,,26/09/2014,10395355,0,623.62,R,Allied Healthcare Group,,
Community Care,Community Care Team,Social Care and Health,Third Party Payments,Third Party,Personal Care.,,05/09/2014,10392701,0,231.30,R,Radis Community Care,,
Community Care,Community Care Team,Social Care and Health,Third Party Payments,Third Party,Personal Care.,,05/09/2014,10393102,0,321.30,R,Nas Services Ltd,,
Community Care,Community Care Team,Social Care and Health,Third Party Payments,Third Party,Personal Care.,,02/09/2014,10392401,0,139.09,R,Action on Hearing Loss,,
Community Care,Community Care Team,Social Care and Health,Third Party Payments,Third Party,Personal Care.,,02/09/2014,10392116,0,341.70,R,Prompt Care Ltd (T/A Sevacare),,
Community Care,Community Care Team,Social Care and Health,Third Party Payments,Third Party,Personal Care.,,12/09/2014,307152,0,611.60,R,REDACTED PERSONAL DATA,,
Community Care,Community Care Team,Social Care and Health,Third Party Payments,Third Party,Personal Care.,,12/09/2014,307152,0,198.48,R,REDACTED PERSONAL DATA,,
Community Care,Community Care Team,Social Care and Health,Third Party Payments,Third Party,Personal Care.,,26/09/2014,10396351,0,392.00,R,JSJ Supported Living Ltd,,
Community Care,Community Care Team,Social Care and Health,Third Party Payments,Third Party,Personal Care.,,26/09/2014,10395284,0,220.11,R,Q Care Ltd,,
Community Care,Community Care Team,Social Care and Health,Third Party Payments,Third Party,Personal Care.,,16/09/2014,10394212,0,784.00,R,Chepstow & District Mencap Soc Ltd,,
Community Care,Community Care Team,Social Care and Health,Third Party Payments,Third Party,Personal Care.,,30/09/2014,10397664,0,"4,772.18",R,REDACTED PERSONAL DATA,,
Community Care,Community Care Team,Social Care and Health,Third Party Payments,Third Party,Personal Care.,,23/09/2014,10395252,0,79.08,R,Q Care Ltd,,
Community Care,Community Care Team,Social Care and Health,Third Party Payments,Third Party,Personal Care.,,23/09/2014,10395242,0,151.80,R,Q Care Ltd,,
Children Services,Children Services Other,Social Care and Health,Third Party Payments,Third Party,Residential.,,16/09/2014,10393747,0,"11,471.50",R,Priory Education Services,,
Community Care,Community Care Team,Social Care and Health,Third Party Payments,Third Party,Residential.,,19/09/2014,10394712,0,"1,944.00",R,Cantref Homes Ltd,,
Community Care,Community Care Team,Social Care and Health,Third Party Payments,Third Party,Residential.,,19/09/2014,10394712,0,"1,944.00",R,Cantref Homes Ltd,,
Community Care,Community Care Team,Social Care and Health,Third Party Payments,Third Party,Residential.,,02/09/2014,10392382,0,"2,200.00",R,Belmont House Res Home,,
Community Care,Community Care Team,Social Care and Health,Third Party Payments,Third Party,Residential.,,26/09/2014,10396057,0,"2,380.00",R,Penpergwm House Ltd,,
Community Care,Community Care Team,Social Care and Health,Third Party Payments,Third Party,Residential.,,19/09/2014,10394712,0,"1,944.00",R,Cantref Homes Ltd,,
Community Care,Community Care Team,Social Care and Health,Third Party Payments,Third Party,Residential.,,19/09/2014,307174,0,208.29,R,Adriana Ltd,,
Community Care,Community Care Team,Social Care and Health,Third Party Payments,Third Party,Residential.,,19/09/2014,307174,0,"1,944.00",R,Adriana Ltd,,
Community Care,Community Care Team,Social Care and Health,Third Party Payments,Third Party,Residential.,,19/09/2014,307174,0,"1,873.64",R,Milkwood Care Ltd T/A Ganarew House,,
Community Care,Community Care Team,Social Care and Health,Third Party Payments,Third Party,Residential.,,05/09/2014,10392765,0,"1,734.00",R,BCVS Homes,,
Community Care,Community Care Team,Social Care and Health,Third Party Payments,Third Party,Residential.,,26/09/2014,10396056,0,"2,263.00",R,Parade Residential Home,,
Community Care,Community Care Team,Social Care and Health,Third Party Payments,Third Party,Residential.,,19/09/2014,307174,0,"1,944.00",R,Bethany Christian Residential Ho,,
Community Care,Community Care Team,Social Care and Health,Third Party Payments,Third Party,Residential.,,19/09/2014,307174,0,"1,944.00",R,Bethany Christian Residential Ho,,
Community Care,Community Care Team,Social Care and Health,Third Party Payments,Third Party,Residential.,,09/09/2014,10393341,0,"1,041.43",R,Bethany Christian Residential Ho,,
Community Care,Community Learning Disability Team,Social Care and Health,Third Party Payments,Third Party,Residential.,,19/09/2014,10394748,0,"4,689.68",R,Riverwood Housing,,
Community Care,Community Learning Disability Team,Social Care and Health,Third Party Payments,Third Party,Residential.,,19/09/2014,307174,0,"1,944.00",R,Castle Court (WHL) Ltd,,
Community Care,Community Learning Disability Team,Social Care and Health,Third Party Payments,Third Party,Residential.,,19/09/2014,307174,0,"5,000.64",R,Carningli Trust,,
Community Care,Community Learning Disability Team,Social Care and Health,Third Party Payments,Third Party,Residential.,,19/09/2014,307174,0,"4,619.00",R,Stroud Care Services Ltd,,
Community Care,Community Learning Disability Team,Social Care and Health,Third Party Payments,Third Party,Residential.,,26/09/2014,10396062,0,"7,461.00",R,Winslow Court,,
Community Care,Community Learning Disability Team,Social Care and Health,Third Party Payments,Third Party,Residential.,,12/09/2014,10393830,0,"3,492.88",R,Nas Services Ltd,,
Community Care,Community Learning Disability Team,Social Care and Health,Third Party Payments,Third Party,Residential.,,12/09/2014,10393841,0,"8,688.17",R,Rapkyns Care Centre,,
Community Care,Community Care Team,Social Care and Health,Third Party Payments,Third Party,Residential.,,19/09/2014,10394743,0,"1,581.90",R,Bryngwyn Road (Priory Group),,
Community Care,Community Care Team,Social Care and Health,Third Party Payments,Third Party,Residential.,,19/09/2014,307174,0,"2,056.00",R,Milkwood Care Ltd T/A Ganarew House,,
Community Care,Community Care Team,Social Care and Health,Third Party Payments,Third Party,Residential.,,19/09/2014,307174,0,"1,900.00",R,Milkwood Care Ltd T/A Ganarew House,,
Community Care,Community Care Team,Social Care and Health,Third Party Payments,Third Party,Residential.,,19/09/2014,307174,0,"5,793.08",R,Care 4 U Ltd,,
Community Care,Community Care Team,Social Care and Health,Third Party Payments,Third Party,Residential.,,02/09/2014,10392382,0,575.00,R,Belmont House Res Home,,
Community Care,Community Care Team,Social Care and Health,Third Party Payments,Third Party,Residential.,,26/09/2014,10396055,0,"1,940.00",R,Oaklands Residential Home,,
Community Care,Community Care Team,Social Care and Health,Third Party Payments,Third Party,Residential.,,26/09/2014,10396055,0,"2,056.00",R,Oaklands Residential Home,,
Community Care,Community Care Team,Social Care and Health,Third Party Payments,Third Party,Residential.,,30/09/2014,10394705,0,"3,975.96",R,Leonard Cheshire Disability,,
Community Care,Community Care Team,Social Care and Health,Third Party Payments,Third Party,Residential.,,09/09/2014,10393338,0,"2,432.00",R,The Maypole Nursing Centre,,
Community Care,Community Care Team,Social Care and Health,Third Party Payments,Third Party,Residential.,,09/09/2014,10393335,0,633.15,R,Scope,,
Community Care,Community Care Team,Social Care and Health,Third Party Payments,Third Party,Residential.,,09/09/2014,10393336,0,316.58,R,Scope,,
Community Care,Community Care Team,Social Care and Health,Third Party Payments,Third Party,Nursing.,,12/09/2014,10393848,0,"2,032.00",R,Avenue Road Nursing Home,,
Community Care,Community Care Team,Social Care and Health,Third Party Payments,Third Party,Nursing.,,19/09/2014,307174,0,"2,032.00",R,Gibraltar House,,
Community Care,Community Care Team,Social Care and Health,Third Party Payments,Third Party,Nursing.,,12/09/2014,10393848,0,"2,032.00",R,Avenue Road Nursing Home,,
Community Care,Community Care Team,Social Care and Health,Third Party Payments,Third Party,Nursing.,,19/09/2014,307174,0,"2,304.00",R,Hallmark Healthcare Caldicot Ltd,,
Community Care,Community Care Team,Social Care and Health,Third Party Payments,Third Party,Nursing.,,05/09/2014,10392760,0,"2,252.00",R,Crick Nursing Home,,
Community Care,Community Care Team,Social Care and Health,Third Party Payments,Third Party,Nursing.,,19/09/2014,10394745,0,"2,230.48",R,Plasgeller  Care Home Ltd,,
Community Care,Community Care Team,Social Care and Health,Third Party Payments,Third Party,Nursing.,,19/09/2014,307174,0,"1,846.43",R,Gibraltar House,,
Community Care,Community Care Team,Social Care and Health,Third Party Payments,Third Party,Nursing.,,02/09/2014,10392383,0,"1,643.60",R,European Care(SW)Ltd,,
Community Care,Community Care Team,Social Care and Health,Third Party Payments,Third Party,Domestic Care,,23/09/2014,10395173,0,834.91,R,Q Care Ltd,,
Community Care,Community Care Team,Social Care and Health,Third Party Payments,Third Party,Domestic Care,,26/09/2014,10396341,0,"1,072.74",R,Oaklands Healthcare Europe Ltd,,
Community Care,Community Care Team,Social Care and Health,Third Party Payments,Third Party,Domestic Care,,16/09/2014,307162,0,"1,138.00",R,REDACTED PERSONAL DATA,,
Community Care,Community Care Team,Social Care and Health,Third Party Payments,Third Party,Domestic Care,,26/09/2014,10395306,0,263.12,R,Q Care Ltd,,
Community Care,Community Care Team,Social Care and Health,Third Party Payments,Third Party,Domestic Care,,26/09/2014,10395285,0,15.18,R,Q Care Ltd,,
Community Care,Community Care Team,Social Care and Health,Third Party Payments,Third Party,Domestic Care,,26/09/2014,10395283,0,196.08,R,Q Care Ltd,,
Community Care,Community Learning Disability Team,Social Care and Health,Third Party Payments,Third Party,Day Care,,05/09/2014,10393150,0,180.00,R,Reach (Supported Living),,
Community Care,Community Care Team,Social Care and Health,Third Party Payments,Third Party,Day Care,,26/09/2014,10396345,0,320.00,R,Penpergwm House Ltd,,
Community Care,Community Care Team,Social Care and Health,Third Party Payments,Third Party,Day Care,,26/09/2014,10396236,0,194.80,R,Headway Cardiff,,
Children Services,Children Services Other,Social Care and Health,Third Party Payments,Third Party,Fostering/Adoption Allowances,,19/09/2014,10394446,0,"5,409.50",R,Foster Care Associates Limited (FCA),,
Children Services,Children Services Other,Social Care and Health,Third Party Payments,Third Party,Fostering/Adoption Allowances,,05/09/2014,10392416,0,"3,777.66",R,The Foster Care Co-operative Ltd,,
Children Services,Children Services Other,Social Care and Health,Third Party Payments,Third Party,Fostering/Adoption Allowances,,05/09/2014,10392579,0,-389.15,R,National Fostering Agency,,
Children Services,Children Services Other,Social Care and Health,Third Party Payments,Third Party,Fostering/Adoption Allowances,,05/09/2014,10392592,0,"3,527.62",R,Independent Foster Care Services Ltd,,
Children Services,Children Services Other,Social Care and Health,Third Party Payments,Third Party,Individual Needs,,05/09/2014,10392413,0,"3,235.29",R,The Foster Care Co-operative Ltd,,
Schools Total,School Group 2 � Pupil Capacity 144-314,MCC Schools,Third Party Payments,Third Party,School Music Service,,30/09/2014,10397227,0,"3,219.19",R,Newport City Council,,
Schools Total,School Group 2 � Pupil Capacity 144-314,MCC Schools,Third Party Payments,Third Party,School Music Service,,26/09/2014,10395927,0,"2,138.00",R,Newport City Council,,
Schools Total,School Group 7 � Pupil Capacity 501-1800,MCC Schools,Third Party Payments,Third Party,School Meal Service,,09/09/2014,10392476,0,238.49,R,Accuro Catering Limited,,
Schools Total,School Group 7 � Pupil Capacity 501-1800,MCC Schools,Third Party Payments,Third Party,School Meal Service,,02/09/2014,10392440,0,144.01,R,Snow White Laundries Ltd,,
Schools Total,School Group 7 � Pupil Capacity 501-1800,MCC Schools,Third Party Payments,Third Party,School Meal Service,,05/09/2014,10387265,0,-975.50,R,Accuro Catering Limited,,
Schools Total,School Group 7 � Pupil Capacity 501-1800,MCC Schools,Third Party Payments,Third Party,School Meal Service,,26/09/2014,10395758,0,6.12,R,REDACTED DATA,,
Schools Total,School Group 7 � Pupil Capacity 501-1800,MCC Schools,Third Party Payments,Third Party,School Meal Service,,26/09/2014,10395758,0,16.67,R,REDACTED DATA,,
Schools Total,School Group 7 � Pupil Capacity 501-1800,MCC Schools,Third Party Payments,Third Party,School Meal Service,,26/09/2014,10395674,0,115.08,R,ESPO,,
Commercial & People Development,Business Growth & Enterprise,Enterprise,Third Party Payments,Third Party,Fencing/Walls Barriers,,16/09/2014,10393660,10057914,"1,480.00",R,KRL Services,,
Schools Effectiveness Grant & Welsh In Education Grant,Schools Better Schools Fund,MCC Schools,Third Party Payments,Third Party,Supply Cover Scheme,,23/09/2014,10395145,0,172.50,R,Teaching 4 Wales Ltd,,
Schools Total,School Group 7 � Pupil Capacity 501-1800,MCC Schools,Transport,Contract Hire and Operating Leases,Vehicle Hire Charge,,09/09/2014,10392485,0,204.17,R,Five Acres Garage,,
Tourism Life & Culture,Cultural Services,Enterprise,Transport,Contract Hire and Operating Leases,Vehicle Hire Charge,,26/09/2014,10395938,0,119.40,R,AGS Fleet Rentals,,
Waste & Street Scene,Waste and Street Services,Operations,Transport,Contract Hire and Operating Leases,Vehicle Hire Charge,,12/09/2014,10393379,0,"2,364.60",R,Gullivers Truck Hire Ltd,,
Waste & Street Scene,Waste and Street Services,Operations,Transport,Contract Hire and Operating Leases,Vehicle Hire Charge,,12/09/2014,10393381,0,625.00,R,Gullivers Truck Hire Ltd,,
Fleet Management & Passenger Transport,Home to School Transport Dept,Operations,Transport,Contract Hire and Operating Leases,Vehicle Hire Charge,,23/09/2014,10394587,0,180.00,R,K & M Taxis,,
Commercial & People Development,Business Growth & Enterprise,Enterprise,Transport,Contract Hire and Operating Leases,Plant Hire Charge,,30/09/2014,10396897,0,"-13,328.79",R,Colin Richardson Contractors,,
Commercial & People Development,Business Growth & Enterprise,Enterprise,Transport,Contract Hire and Operating Leases,Plant Hire Charge,,30/09/2014,10396732,10058377,"13,328.79",R,Colin Richardson Contractors,,
Waste & Street Scene,Waste and Street Services,Operations,Transport,Contract Hire and Operating Leases,Plant Hire Charge,,26/09/2014,10395318,808879,124.40,R,Gibbon Equipment Hire,,
Highways,Highways,Operations,Transport,Contract Hire and Operating Leases,Plant Hire Charge,,30/09/2014,10396401,0,33.90,R,Forest Traffic Signals Ltd,,
Highways,Highways,Operations,Transport,Contract Hire and Operating Leases,Plant Hire Charge,,05/09/2014,10392626,808714,647.50,R,Tom Prichard Contracting Ltd,,
Highways,Highways,Operations,Transport,Contract Hire and Operating Leases,Plant Hire Charge,,05/09/2014,10392628,808714,"-3,893.75",R,Tom Prichard Contracting Ltd,,
Highways,Highways,Operations,Transport,Contract Hire and Operating Leases,Plant Hire Charge,,05/09/2014,10392632,808524,"1,000.00",R,Etheridge Plant Hire Ltd,,
Highways,Highways,Operations,Transport,Contract Hire and Operating Leases,Plant Hire Charge,,05/09/2014,10392610,808240,"2,531.93",R,Cardiff Drain Cleaning Co (Wales Environmental),,
Highways,Highways,Operations,Transport,Contract Hire and Operating Leases,Plant Hire Charge,,05/09/2014,10392615,808714,"-1,295.00",R,Tom Prichard Contracting Ltd,,
Highways,Highways,Operations,Transport,Contract Hire and Operating Leases,Plant Hire Charge,,26/09/2014,10395301,808537,172.94,R,Speedy Asset Services Limited,,
Highways,Highways,Operations,Transport,Contract Hire and Operating Leases,Plant Hire Charge,,26/09/2014,10395302,808537,275.72,R,Speedy Asset Services Limited,,
Highways,Highways,Operations,Transport,Contract Hire and Operating Leases,Plant Hire Charge,,26/09/2014,10395299,808537,551.44,R,Speedy Asset Services Limited,,
Fleet Management & Passenger Transport,Home to School Transport Dept,Operations,Transport,Direct Transport Costs,Vechicles Repairs and Maintenance,,05/09/2014,10392567,10059242,"1,070.00",R,National Windscreens Ltd,,
Fleet Management & Passenger Transport,Home to School Transport Dept,Operations,Transport,Direct Transport Costs,Vechicles Repairs and Maintenance,,16/09/2014,10394094,10056580,"1,905.66",R,Newport Transport Ltd,,
Fleet Management & Passenger Transport,Home to School Transport Dept,Operations,Transport,Direct Transport Costs,Vechicles Repairs and Maintenance,,23/09/2014,10395040,10058916,520.00,R,Chris Spiteri & Sons,,
Fleet Management & Passenger Transport,Home to School Transport Dept,Operations,Transport,Direct Transport Costs,Vechicles Repairs and Maintenance,,23/09/2014,10395045,10059476,"1,007.82",R,Bulwark Bus & Coach Eng. Ltd,,
Fleet Management & Passenger Transport,Home to School Transport Dept,Operations,Transport,Direct Transport Costs,Vechicles Repairs and Maintenance,,23/09/2014,10395053,10056683,217.50,R,Newport Transport Ltd,,
Fleet Management & Passenger Transport,Home to School Transport Dept,Operations,Transport,Direct Transport Costs,Vechicles Repairs and Maintenance,,23/09/2014,10395070,10056692,99.45,R,Newport Transport Ltd,,
Fleet Management & Passenger Transport,Home to School Transport Dept,Operations,Transport,Direct Transport Costs,Vechicles Repairs and Maintenance,,23/09/2014,10395062,10056574,315.00,R,Newport Transport Ltd,,
Fleet Management & Passenger Transport,Home to School Transport Dept,Operations,Transport,Direct Transport Costs,Vechicles Repairs and Maintenance,,23/09/2014,10395066,10056562,232.50,R,Newport Transport Ltd,,
Fleet Management & Passenger Transport,Transport Department,Operations,Transport,Direct Transport Costs,Spare Parts,,26/09/2014,10395719,0,190.00,R,Mon & Border Motor Factors Ltd,,
Fleet Management & Passenger Transport,Transport Department,Operations,Transport,Direct Transport Costs,Spare Parts,,26/09/2014,10395719,0,190.00,R,Mon & Border Motor Factors Ltd,,
Fleet Management & Passenger Transport,Transport Department,Operations,Transport,Direct Transport Costs,Spare Parts,,26/09/2014,10395708,0,13.98,R,Motorcare,,
Fleet Management & Passenger Transport,Transport Department,Operations,Transport,Direct Transport Costs,Spare Parts,,26/09/2014,10395890,0,38.67,R,Newport Ford,,
Fleet Management & Passenger Transport,Transport Department,Operations,Transport,Direct Transport Costs,Spare Parts,,26/09/2014,10395891,0,385.46,R,Johnston Sweepers Limited,,
Fleet Management & Passenger Transport,Transport Department,Operations,Transport,Direct Transport Costs,Spare Parts,,26/09/2014,10395974,0,28.45,R,Watts Truck & Van,,
Fleet Management & Passenger Transport,Transport Department,Operations,Transport,Direct Transport Costs,Spare Parts,,26/09/2014,10395976,0,339.55,R,Watts Truck & Van,,
Fleet Management & Passenger Transport,Transport Department,Operations,Transport,Direct Transport Costs,Spare Parts,,26/09/2014,10396127,0,151.54,R,Dennis Eagle Limited,,
Fleet Management & Passenger Transport,Transport Department,Operations,Transport,Direct Transport Costs,Spare Parts,,26/09/2014,10396101,0,25.51,R,Johnston Sweepers Limited,,
Fleet Management & Passenger Transport,Transport Department,Operations,Transport,Direct Transport Costs,Spare Parts,,26/09/2014,10395832,0,446.68,R,Baylis,,
Fleet Management & Passenger Transport,Transport Department,Operations,Transport,Direct Transport Costs,Spare Parts,,26/09/2014,10395989,0,173.25,R,Newport Ford,,
Fleet Management & Passenger Transport,Transport Department,Operations,Transport,Direct Transport Costs,Spare Parts,,26/09/2014,10395721,0,92.25,R,Mon & Border Motor Factors Ltd,,
Fleet Management & Passenger Transport,Transport Department,Operations,Transport,Direct Transport Costs,Spare Parts,,26/09/2014,10396375,0,201.18,R,Mon & Border Motor Factors Ltd,,
Fleet Management & Passenger Transport,Transport Department,Operations,Transport,Direct Transport Costs,Spare Parts,,30/09/2014,10396389,0,81.38,R,Abergavenny Brake & Clutch,,
Fleet Management & Passenger Transport,Transport Department,Operations,Transport,Direct Transport Costs,Spare Parts,,30/09/2014,10396400,0,95.00,R,Auto Service (Pontypool) Ltd,,
Fleet Management & Passenger Transport,Transport Department,Operations,Transport,Direct Transport Costs,Spare Parts,,30/09/2014,10396374,0,25.94,R,Mon & Border Motor Factors Ltd,,
Fleet Management & Passenger Transport,Transport Department,Operations,Transport,Direct Transport Costs,Spare Parts,,30/09/2014,10396382,0,53.53,R,Abergavenny Brake & Clutch,,
Fleet Management & Passenger Transport,Home to School Transport Dept,Operations,Transport,Direct Transport Costs,Spare Parts,,19/09/2014,10394761,10059482,2.24,R,Mon & Border Motor Factors Ltd,,
Fleet Management & Passenger Transport,Home to School Transport Dept,Operations,Transport,Direct Transport Costs,Spare Parts,,05/09/2014,10392539,10059246,50.52,R,Mon & Border Motor Factors Ltd,,
Fleet Management & Passenger Transport,Home to School Transport Dept,Operations,Transport,Direct Transport Costs,Spare Parts,,16/09/2014,10392570,10059244,148.25,R,Fast Rads Ltd,,
Fleet Management & Passenger Transport,Home to School Transport Dept,Operations,Transport,Direct Transport Costs,Spare Parts,,16/09/2014,10393962,10059397,472.91,R,Fast Rads Ltd,,
Fleet Management & Passenger Transport,Home to School Transport Dept,Operations,Transport,Direct Transport Costs,Spare Parts,,30/09/2014,10397197,10059650,120.75,R,Fast Rads Ltd,,
Fleet Management & Passenger Transport,Transport Department,Operations,Transport,Direct Transport Costs,Tyres And Tubes,,05/09/2014,10392215,0,56.75,R,Celtic Tyre Services (Cardiff) Ltd,,
Fleet Management & Passenger Transport,Transport Department,Operations,Transport,Direct Transport Costs,Tyres And Tubes,,26/09/2014,10395811,0,440.00,R,Celtic Tyre Services (Cardiff) Ltd,,
Fleet Management & Passenger Transport,Transport Department,Operations,Transport,Direct Transport Costs,Tyres And Tubes,,26/09/2014,10396135,0,182.99,R,ATS Euromaster Ltd,,
Fleet Management & Passenger Transport,Transport Department,Operations,Transport,Direct Transport Costs,Tyres And Tubes,,26/09/2014,10395812,0,20.00,R,Celtic Tyre Services (Cardiff) Ltd,,
Fleet Management & Passenger Transport,Transport Department,Operations,Transport,Direct Transport Costs,Tyres And Tubes,,26/09/2014,10395823,0,85.80,R,Celtic Tyre Services (Cardiff) Ltd,,
Fleet Management & Passenger Transport,Home to School Transport Dept,Operations,Transport,Direct Transport Costs,Tyres And Tubes,,23/09/2014,10395072,10056684,"1,487.36",R,ATS Euromaster Ltd,,
Waste & Street Scene,Waste and Street Services,Operations,Transport,Direct Transport Costs,Tyres And Tubes,,09/09/2014,10393263,0,65.78,R,ATS Euromaster Ltd,,
Fleet Management & Passenger Transport,Transport Department,Operations,Transport,Direct Transport Costs,Diesel,,26/09/2014,10396144,0,"5,340.00",R,Certas Energy UK,,
Highways,Highways,Operations,Transport,Direct Transport Costs,Plant Fuel / Red Diesel,,19/09/2014,10394471,808954,"1,158.24",R,Severn Fuels Ltd,,
Fleet Management & Passenger Transport,Transport Department,Operations,Transport,Direct Transport Costs,Road Fund Licence,,05/09/2014,10392464,0,"8,000.00",R,Post Office Fleet and Bulk Service,,
Fleet Management & Passenger Transport,Transport Department,Operations,Transport,Direct Transport Costs,All Other Non-Contract Transport Work.,,19/09/2014,10394421,0,295.00,R,Signrite Vinyl Specialists Limited,,
Fleet Management & Passenger Transport,Transport Department,Operations,Transport,Direct Transport Costs,All Other Non-Contract Transport Work.,,26/09/2014,10396067,0,45.30,R,Princes Gate Cool Water Ltd,,
Fleet Management & Passenger Transport,Home to School Transport Dept,Operations,Transport,Public Transport,Season Tickets,,16/09/2014,10393869,0,591.60,R,Stagecoach Services Ltd,,
Fleet Management & Passenger Transport,Home to School Transport Dept,Operations,Transport,Public Transport,Travel Concessions,,19/09/2014,10393734,0,"1,058.27",R,Bridges Community Centre,,
Fleet Management & Passenger Transport,Home to School Transport Dept,Operations,Transport,Public Transport,Travel Concessions,,19/09/2014,10393736,0,"9,112.41",R,Varteg Motors Ltd,,
Control Division,Control Dept,Control,Current Liabilities,Short Term Creditors,Resource Link Payments,,05/09/2014,10392779,0,11.43,R,Equitable Life A.S. E0281,,
Control Division,Control Dept,Control,Current Liabilities,Short Term Creditors,Resource Link Payments,,05/09/2014,10392798,0,85.82,R,Torfaen CBC,,
Control Division,Control Dept,Control,Current Liabilities,Short Term Creditors,Resource Link Payments,,16/09/2014,10393602,0,"7,665.67",R,Kiddivouchers,,
Control Division,Control Dept,Control,Current Liabilities,Short Term Creditors,Resource Link Payments,,05/09/2014,10392783,0,50.00,R,Plutus Heaalth,,
Tourism Life & Culture,Leisure Services,Enterprise,Employees,Direct Employee Expenses,Salaries,,16/09/2014,10393588,0,536.20,R,REDACTED PERSONAL DATA,,
Schools Total,School Group 7 � Pupil Capacity 501-1800,MCC Schools,Employees,Direct Employee Expenses,Agency Staff,,26/09/2014,10395850,80030281,116.00,R,Meridian Education,,
Schools Total,School Group 7 � Pupil Capacity 501-1800,MCC Schools,Employees,Direct Employee Expenses,Agency Staff,,26/09/2014,10395842,80030029,405.00,R,Affinity Education Limited,,
Schools Total,School Group 7 � Pupil Capacity 501-1800,MCC Schools,Employees,Direct Employee Expenses,Agency Staff,,30/09/2014,10396523,80030284,354.00,R,New Directions Recruitment Ltd,,
Schools Total,School Group 7 � Pupil Capacity 501-1800,MCC Schools,Employees,Direct Employee Expenses,Agency Staff,,16/09/2014,10394125,0,888.00,R,Meridian Business Support,,
Schools Total,School Group 7 � Pupil Capacity 501-1800,MCC Schools,Employees,Direct Employee Expenses,Agency Staff,,16/09/2014,10394108,0,"1,540.00",R,Supply Desk Ltd,,
Schools Total,School Group 1 � Pupil Capacity 1-143,MCC Schools,Employees,Direct Employee Expenses,Agency Staff,,05/09/2014,10385047,0,129.45,R,Teaching Personnel,,
Schools Total,SCHGRP3 � School Group 3 � Pupil Capacity 315-500,MCC Schools,Employees,Direct Employee Expenses,Agency Staff,,26/09/2014,10395431,0,510.42,R,Travail Employment Group,,
Schools Total,School Group 2 � Pupil Capacity 144-314,MCC Schools,Employees,Direct Employee Expenses,Agency Staff,,16/09/2014,10394079,80027809,170.00,R,Teaching Personnel,,
Schools Total,School Group 2 � Pupil Capacity 144-314,MCC Schools,Employees,Direct Employee Expenses,Agency Staff,,30/09/2014,10396536,80027809,332.70,R,Teaching Personnel,,
Schools Total,School Group 2 � Pupil Capacity 144-314,MCC Schools,Employees,Direct Employee Expenses,Agency Staff,,02/09/2014,10392087,0,353.00,R,Teaching 4 Wales Ltd,,
Schools Total,School Group 2 � Pupil Capacity 144-314,MCC Schools,Employees,Direct Employee Expenses,Agency Staff,,30/09/2014,10396926,0,"1,295.00",R,Teaching 4 Wales Ltd,,
Schools Total,SCHGRP3 � School Group 3 � Pupil Capacity 315-500,MCC Schools,Employees,Direct Employee Expenses,Agency Staff,,16/09/2014,10380842,0,236.00,R,Teaching 4 Wales Ltd,,
Schools Total,SCHGRP3 � School Group 3 � Pupil Capacity 315-500,MCC Schools,Employees,Direct Employee Expenses,Agency Staff,,16/09/2014,10380842,0,133.50,R,Teaching 4 Wales Ltd,,
Schools Total,School Group 2 � Pupil Capacity 144-314,MCC Schools,Employees,Direct Employee Expenses,Agency Staff,,16/09/2014,10394133,0,85.00,R,Bay Resourcing,,
